Workbook

Sheet Cover Page
D1: Add company logo
N2: Version 20.1
B8: Add photo
N13: Notes:
N14: This template may require adjustments by individual operators to meet specific reporting requirements as defined in the site Permit(s)
B29: Annual Performance Report 2021
B31: Permit EPR/BT7116IW
B33: Lakeside Energy from Waste Limited
B35: other name of facility (if applicable)
B37: Lakeside EFW Ltd
B39: Year: | C39: 2021
B41: Address: | C41: Lakeside Road, Colnbrook, Berkshire, SL3 0FE
B43: Tel: | C43: 01753 688435
B45: Email: | C45: martin.rogers@lakesideefw.co.uk
B47: Prepared by: | C47: Martin Rogers | F47: Position: | G47: EHS Manager
B49: Approved by: | C49: Danny Coulston | F49: Position: | G49: Director of Operations
B51: Version: | C51: 1
B53: Issue Date: | C53: 2022-01-21

Sheet Contents
A1: =+'Cover Page'!$B$29 -> Annual Performance Report 2021 | E1: =+'Cover Page'!$B$33 -> Lakeside Energy from Waste Limited
A3: Contents | K3: Notes:
A4: Section | B4: Subject | H4: Page | K4: Section references and Page nos. to be inserted
B5: Facility Information | H5: 3 | K5: Sections and Subjects may require adjustment by individual operators to meet specific reporting requirements as defined in the sites Permit(s)
B6: Operational Summary | H6: 5
B7: Operational Data | H7: 4
B8: Performance Form 1 | H8: 6
B9: Energy Form 1 | H9: 7
B10: Permit Compliance | H10: 9
B11: Improvements | H11: 8
B12: Public Liasion | H12: 10
B13: Residue Quality - Optional | H13: 11
B14: Emissions to Water | H14: 12
B15: Emissions to Air (periodically monitored) | H15: 13
B16: Emissions to Air (continuously monitored) | H16: 14
B17: Hydrogen Chloride emissions | H17: 15
B18: Sulphur Dioxdie emsissions | H18: 16
B19: Oxides of Nitrogen emissions | H19: 17
B20: Total Organic Carbon emissions | H20: 18
B21: Particulate Matter emissions | H21: 19
B22: Carbon Monoxide emissions | H22: 20
B23: Ammonia emissions | H23: 21
A26: Version Control
A27: Section | B27: Information | H27: Date
A34: Distribution
A35: Copy | B35: Name, Role | H35: No.
A44: This report is required under the Industrial Emissions Directive’s Article 55(2) requirements on reporting and public information on waste incineration plants and co-incineration plants, which require the operator to produce an annual report on the functioning and monitoring of the plant and make it available to the public.

Sheet Facility Info
A1: =+'Cover Page'!$B$29 -> Annual Performance Report 2021 | E1: =+'Cover Page'!$B$33 -> Lakeside Energy from Waste Limited
A3: Plant Description and Design | K3: Notes:
A5: Lakeside Energy from Waste (EfW) A joint venture project between two of the UK’s leading recycling and waste management companies; Grundon Waste Management and Viridor. The Lakeside EfW facility at Colnbrook near Slough has been operational since 2010. Using advanced technology, this plant is capable of processessing over 450,000 tonnes of residual waste per year, generating 37MW of power – enough to provide electricity to every household in Slough (56,000 homes). There is an education centre adjacent to Lakeside EfW, where schools and other groups can learn about sustainable waste management and energy from waste. (alt enter to make new para) | K5: Include summary of plant design, design capacity, no. of combustion lines, electrical and heat capacity and any other general information that descibes the facility, its location and purpose
A20: Summary of Operational Processes and Procedures
A22: Lakeside operate an Integrated Management System (IMS) that is ISO 14001, ISO 45001, ISO 9001, ISO 22301 and ISO 50001 certified. It includes all the procedures for receiving and inspecting waste, auditing suppliers to ensure waste quality and compliance. Operations includes procedures for running the plant, showing how to start a line, run a line and shutdown a line. EHS includes procedures for monitoring and reporting compliance. Maintenance includes all the procedures for planned maintenance, unplanned maintenance, outages and preventative maintenance. | K22: Include summary of key processes and procedures such as (but not limited to); waste reception, control rooms, grate, bed and bolier, energy & heat generation, cooling systems, residue management, emission controls, health and safety systems, maintenance

Sheet Operational Data
A1: =+'Cover Page'!$B$29 -> Annual Performance Report 2021 | E1: =+'Cover Page'!$B$33 -> Lakeside Energy from Waste Limited
A3: Operational Data | K3: Notes:
A4: Plant Size | D4: tonnes pa | F4: MWth | H4: MWe | K4: * - RDF to include SRF
A5: No. of combustion lines | B5: 2 | D5: No. of Turbines: | F5: 1 | K5: ** - CHP plants only
K6: 2020 updates include; heat in MWh, water in Litres, NCV in MJ/kg
A7: Waste types received | B7: Unit | C7: Q1 | D7: Q2 | E7: Q3 | F7: Q4 | G7: Year Total | H7: %
A8: Household / Local Authority | B8: tonnes | C8: 62492 | D8: 60487 | E8: 47949 | F8: 63566 | G8: =SUM(C8:F8) -> 234494 | H8: =IF(G8>0,G8/$G$18,"-") -> 0.5958853635 | K8: Availabiity Definition: 'the availability of a line is to be calculated by the number of hours the line reported Continuously Monitored emission levels to the Regulator through the calendar year divided by the total number of hours in that year. The overall plant availability is calculated as the Mean of all lines in the plant. For clarity this includes periods of Other Than Normal Operating Conditions (OTNOC) and abnormal operation.' Rationale: The primary function of an Energy from Waste facility is the disposal of waste. It follows therefore that the availability of a plant is determined by the period of time a facility spends undertaking this activity.
A9: Commercial & Industrial | C9: 42444 | D9: 40404 | E9: 32083 | F9: 42478 | G9: =SUM(C9:F9) -> 157409 | H9: 0.4000005082
A10: Hazardous | C10: 79 | D10: 51 | E10: 175 | F10: 151 | G10: 456 | H10: 0.001158766219
A11: Clinical | C11: 1096 | D11: 67 | G11: 1163 | H11: 0.002955362089
A12: Waste wood (biomass) | G12: 0 | H12: -
A13: Refuse Derived Fuel * - H'hold/LA | G13: =SUM(C13:F13) -> 0 | H13: -
A14: Refuse Derived Fuel * - C&I | G14: 0 | H14: -
A15: Other [Please specify] | G15: 0 | H15: -
A16: Other [Please specify]
A17: Other [Please specify]
A18: Total waste received | C18: =SUM(C8:C17) -> 106111 | D18: =SUM(D8:D17) -> 101009 | E18: =SUM(E8:E17) -> 80207 | F18: =SUM(F8:F17) -> 106195 | G18: =SUM(G8:G17) -> 393522 | H18: =IF(G18>0,G18/$G$18,"-") -> 1
A19: Rejected Waste | D19: 5 | F19: 2 | G19: =SUM(C19:F19) -> 7 | H19: =IF(G19>0,G19/$G$18,"-") -> 1.778807792e-05
A20: Unprocessed waste transferred out | G20: =SUM(C20:F20) -> 0 | H20: =IF(G20>0,G20/$G$18,"-") -> -
A21: Total waste combusted | C21: 104217 | D21: 97434 | E21: 75053 | F21: 104978 | G21: =SUM(C21:F21) -> 381682 | H21: =IF(G21>0,G21/$G$18,"-") -> 0.9699127368
A23: Energy Useage / Export | B23: Unit | C23: Q1 | D23: Q2 | E23: Q3 | F23: Q4 | G23: Year Total | H23: KWh/te
A24: Power Generated | B24: MWh | C24: 78989 | D24: 76425 | E24: 39721 | F24: 20632 | G24: =SUM(C24:F24) -> 215767 | H24: =IF(G24>0,G24*1000/$G$21,"-") -> 565.3056733
A25: Power Exported | C25: 71173 | D25: 68938 | E25: 35277 | F25: 18095 | G25: =SUM(C25:F25) -> 193483 | H25: =IF(G25>0,G25*1000/$G$21,"-") -> 506.9219927
A26: Power Used on site | C26: 7816 | D26: 7487 | E26: 5132 | F26: 7481 | G26: =SUM(C26:F26) -> 27916 | H26: =IF(G26>0,G26*1000/$G$21,"-") -> 73.13941973
A27: Power Imported | C27: 0 | D27: 193 | E27: 2106 | F27: 5523 | G27: 7822 | H27: =IF(G27>0,G27*1000/$G$21,"-") -> 20.49349982
A28: Parasitic Load | B28: % | C28: =IF(C24>0,1-C25/(C24+C27),"-") -> 0.09895048678 | D28: =IF(D24>0,1-D25/(D24+D27),"-") -> 0.1002375421 | E28: =IF(E24>0,1-E25/(E24+E27),"-") -> 0.1565974132 | F28: =IF(F24>0,1-F25/(F24+F27),"-") -> 0.3081628752 | G28: =IF(G24>0,1-G25/(G24+G27),"-") -> 0.1346488423
A29: Thermal Energy Produced ** | B29: MWh | G29: =SUM(C29:F29) -> 0 | H29: =IF(G29>0,G29*1000/$G$18,"-") -> -
A30: Thermal Energy Exported ** | G30: 0 | H30: -
A31: R1 value | G31: Design / Operational / n/a
A33: Waste Disposal & Recovery | B33: Unit | C33: Q1 | D33: Q2 | E33: Q3 | F33: Q4 | G33: Year Total | H33: % inputs
A34: APC Residues - produced | B34: tonnes | C34: 3417 | D34: 3185 | E34: 2298 | F34: 3025 | G34: =SUM(C34:F34) -> 11925 | H34: =IF(G34>0,G34/$G$21,"-") -> 0.0312432863
A35: IBA - produced | C35: 20398 | D35: 20026 | E35: 14575 | F35: 18820 | G35: 73819 | H35: =IF(G35>0,G35/$G$21,"-") -> 0.1934044571
A36: Metals recycling | C36: 1121 | D36: 1066 | E36: 882 | F36: 1054 | G36: =SUM(C36:F36) -> 4123 | H36: =IF(G36>0,G36/$G$21,"-") -> 0.01080218611
A37: Other | C37: 0 | D37: 0 | E37: 0 | F37: 0 | G37: =SUM(C37:F37) -> 0 | H37: =IF(G37>0,G37/$G$18,"-") -> -
A38: Other | C38: 0 | D38: 0 | E38: 0 | F38: 0 | G38: 0 | H38: =IF(G38>0,G38/$G$18,"-") -> -
A39: Other | C39: 0 | D39: 0 | E39: 0 | F39: 0 | G39: 0 | H39: =IF(G39>0,G39/$G$18,"-") -> -
A41: Raw Material Usage | B41: Unit | C41: Q1 | D41: Q2 | E41: Q3 | F41: Q4 | G41: Year Total | H41: kg or Ltr /te
A42: Mains Water | B42: ltrs | C42: 23578 | D42: 22005 | E42: 18529 | F42: 12761 | G42: =SUM(C42:F42) -> 76873 | H42: =IF(G42>0,G42/$G$21,"-") -> 0.2014058824
A43: Other Water | B43: ltrs | G43: 0 | H43: =IF(G43>0,G43/$G$18,"-") -> -
A44: Ammonia | B44: kgs | C44: 95849 | D44: 40622 | E44: 25680 | F44: 39750 | G44: 201901 | H44: =IF(G44>0,G44/$G$21,"-") -> 0.5289770018
A45: Urea | B45: kgs | G45: =SUM(C45:F45) -> 0 | H45: =IF(G45>0,G45/$G$18,"-") -> -
A46: Activated Carbon | B46: kgs | C46: 42449 | D46: 40614 | E46: 30347 | F46: 41197 | G46: 154607 | H46: =IF(G46>0,G46/$G$21,"-") -> 0.4050675693
A47: Lime / hydrated lime | B47: kgs | C47: 1371055 | D47: 1299513 | E47: 883542 | F47: 1108898 | G47: 4663008 | H47: =IF(G47>0,G47/$G$18,"-") -> 11.84942138
A48: Fuel oil | B48: ltrs | C48: 19375 | D48: 42171 | E48: 123039 | F48: 23066 | G48: 207651 | H48: =IF(G48>0,G48/$G$21,"-") -> 0.5440418988
A49: Gas | B49: cf | C49: 0 | D49: 0 | E49: 0 | F49: 0 | G49: 0
A50: Other | C50: 0 | D50: 0 | E50: 0 | F50: 0 | G50: 0
A52: Summary | B52: Line/Unit | C52: Q1 | D52: Q2 | E52: Q3 | F52: Q4 | G52: Year Total | J52: Hrs in year
A53: Availability of waste combustion by line, hrs | B53: 1 | C53: 2133.5 | D53: 2096 | E53: 1709 | F53: 2208 | G53: =SUM(C53:F53) -> 8146.5 | H53: =G53/$J$53 -> 0.9274248634 | J53: 8784
B54: 2 | C54: 2121 | D54: 2075 | E54: 1652 | F54: 2166 | G54: 8014 | H54: =G54/$J$53 -> 0.9123406193
B55: 3 | G55: 0 | H55: x %
B56: 4 | G56: 0 | H56: x %
B57: 5 | G57: =SUM(C57:F57) -> 0 | H57: x %
A58: Overall Availability, mean avg. of all lines, hrs | C58: =(C53+C54)/2 -> 2127.25 | D58: =(D53+D54)/2 -> 2085.5 | E58: 1680.5 | F58: 2187 | G58: =AVERAGE(G53:G54) -> 8080.25 | H58: =G58/$J$53 -> 0.9198827413
A59: Hours of turbine operations, hrs | B59: 1 | C59: 2160 | D59: 2061 | E59: 1247 | F59: 575 | G59: 6043 | H59: =G59/$J$53 -> 0.6879553734
A60: Hours of turbine operations, hrs | B60: 2 | G60: 0 | H60: x %
A61: Hours of heat / steam export | G61: 0 | H61: =IF(B61>0,G60/J53,"n/a") -> n/a
A62: Net Calorific Value of waste | B62: MJ/kg | C62: 10183 | D62: 10177 | E62: 10138 | F62: 9866 | H62: -
A63: Abnormal Events | B63: qty. | C63: 1 | D63: 0 | E63: 1 | F63: 0 | G63: 2 | H63: =IF(G63>0,"yes","no") -> yes
A64: Abnormal operation | B64: hours | C64: 1 | D64: 0 | E64: 0.5 | F64: 0 | G64: 1.5 | H64: =+(G64)/J53 -> 0.0001707650273
A65: Permit Breaches | B65: qty. | C65: 1 | D65: 1 | E65: 1 | F65: 0 | G65: 3 | H65: =IF(G65>0,"yes","no") -> yes

Sheet Operational Summary
A1: =+'Cover Page'!$B$29 -> Annual Performance Report 2021 | E1: =+'Cover Page'!$B$33 -> Lakeside Energy from Waste Limited
A3: Summary of Plant Operations and Maintenance during the reporting year | K3: Notes:
A5: The plant operates 2 lines and had an outage during August and September, with the turbine outage starting when both lines were shut down. Line 1 was operational for 8147 hours which is 92.7 % availability. Line 2 operated for 8014 hours an availability of 91.2 %, with the turbine running for 6043 hours an availability of 68.8 %. The rotor was sent to Italy and was delayed in its return. The outage for each line was an oportunity to repair and renew each line ready for the next phase of running. The turbine and generator were given a major overhaul during the outage Noise was measured, on site then mapped back to the three local receptors. The noise limit of 39 dB(A) was not exceeded. Borehole results for 2021 showed no anomalies from previous years readings. The sample points occupy the 4 corners of the site. | K5: Include summary of key operational and/or mainteanance activity undertaken in the year, such as any major component upgrades and/or replacements
A29: Summary of Residue Handling for the reporting year
A31: Material and disposal point listed below. IBA Days : Transport Avenue, Brentford TW8 9HF APC Carbon8 - (deemed hazardous) Norfolk House, High Street, Brandon, Suffolk IP27 0AX, Tel 01842 812229, License: JP 3332/FK Carbon8 Aggregates Ltd, Aggregate production facility, Central Avenue, Hallen, Avonmouth, BS10 7SD, Licence: HP3638WW OVERSIZE Scrapped metal that has gone through the furnace. W N Thomas Metal Recycling, Stoke Gardens, Slough, Berkshire, SL1 3QA, Licence: CBDU80509 M D J Light, Greystone Quarry Top Yard, Southerham, Lewes, East Sussex, BN8 6JN, Licence: NP3333CF | K31: Include in here a summary of residue handling regimes and destinations

Sheet Perf. Form 1
A1: =+'Cover Page'!C39 -> 2021 | B1: Annual Reporting Performance Form 1
A3: =+'Cover Page'!B31 -> Permit EPR/BT7116IW | F3: Operator: | G3: =+'Cover Page'!B37:I37 -> 0
A4: Facility: | B4: =+'Cover Page'!B33:I33 -> Lakeside Energy from Waste Limited | F4: Form: | G4: Performance 1
A6: Reporting Period from: | D6: 1st January 2021 | F6: to: | G6: 31st December 2021
A8: =+A1 -> 2021 | B8: Annual Reporting of Waste Disposal and Recovery
A9: Waste Description | C9: Disposal Route(s) | E9: Disposal Tonnes | G9: Recovery Tonnes | I9: % / tonne of waste incinerated
A10: 1) Hazardous Wastes
A11: APC Residues | C11: R05 | G11: 11925 | I11: =IF((E11+G11)>0,(E11+G11)/'Operational Data'!$G$18, "-") -> 0.03030326132
A12: IBA | I12: =IF((E12+G12)>0,(E12+G12)/'Operational Data'!$G$18, "-") -> -
I13: =IF((E13+G13)>0,(E13+G13)/'Operational Data'!$G$18, "-") -> -
I14: =IF((E14+G14)>0,(E14+G14)/'Operational Data'!$G$18, "-") -> -
A15: Total Hazardous Waste | E15: =SUM(E11:F14) -> 0 | G15: =SUM(G11:H14) -> 11925 | I15: =IF((E15+G15)>0,(E15+G15)/'Operational Data'!$G$18, "-") -> 0.03030326132
A17: 2) Non-Hazardous Wastes
A18: IBA | C18: R11 | G18: 73819 | I18: =IF((E18+G18)>0,(E18+G18)/'Operational Data'!$G$18, "-") -> 0.1875854463
A19: Ferrous Metal | C19: R04 | G19: 4123 | I19: =IF((E19+G19)>0,(E19+G19)/'Operational Data'!$G$18, "-") -> 0.0104771779
A20: Process Water | I20: =IF((E20+G20)>0,(E20+G20)/'Operational Data'!$G$18, "-") -> -
I21: =IF((E21+G21)>0,(E21+G21)/'Operational Data'!$G$18, "-") -> -
I22: =IF((E22+G22)>0,(E22+G22)/'Operational Data'!$G$18, "-") -> -
A23: Total Non-Hazardous Waste | E23: =SUM(E18:F22) -> 0 | G23: =SUM(G18:H22) -> 77942 | I23: =IF((E23+G23)>0,(E23+G23)/'Operational Data'!$G$18, "-") -> 0.1980626242
A24: TOTAL WASTE | E24: =+E23+E15 -> 0 | G24: =+G23+G15 -> 89867 | I24: =IF((E24+G24)>0,(E24+G24)/'Operational Data'!$G$18, "-") -> 0.2283658855
A26: Operator’s comments :
A31: =+A1 -> 2021 | B31: Annual Reporting of Water and Other Raw Material Usage
A32: Raw Material | E32: Usage | G32: Unit | H32: Specific Useage | J32: Unit
A33: Mains Water | E33: =+'Operational Data'!G42 -> 76873 | G33: m3 | H33: =IF(E33>0,E33/'Operational Data'!$G$18,"-") -> 0.1953461306 | J33: m3/te
A34: Total Water | E34: =+'Operational Data'!G43+'Operational Data'!G42 -> 76873 | G34: m3 | H34: =IF(E34>0,E34/'Operational Data'!$G$18,"-") -> 0.1953461306 | J34: m3/te
A35: Urea / Ammonia | E35: =+'Operational Data'!G44 -> 201901 | G35: kg | H35: =IF(E35>0,E35/'Operational Data'!$G$18,"-") -> 0.5130615315 | J35: kg/te
A36: Activated Carbon | E36: =+'Operational Data'!G46 -> 154607 | G36: kg | H36: =IF(E36>0,E36/'Operational Data'!$G$18,"-") -> 0.3928801948 | J36: kg/te
A37: Lime / hydrated lime / Sodium Bicarb. | E37: =+'Operational Data'!G47 -> 4663008 | G37: kg | H37: =IF(E37>0,E37/'Operational Data'!$G$18,"-") -> 11.84942138 | J37: kg/te
A39: Operator’s comments :
A43: =+A31 -> 2021 | B43: Annual Reporting of other performance indicators
A44: Parameter | C44: Results by Line
C45: A1 | D45: A2 | E45: A3 | F45: A4 | G45: A5 | I45: Turbine 1 | J45: Turbine 2
A46: Operating hours for the year, hours | C46: 8147 | D46: 8014 | I46: 6043
A47: Number of periods of abnormal operation, qty. | C47: 2 | D47: 0
A48: Cumulative hours of abnormal operation for this year, hours | C48: 2 | D48: 0
A50: Operator’s comments :
A51: One period of abnormal operation was due to a communication error between the CEMS and the computer, with the other being a bag failure which caused a spike in particulates of 34.29 mg/m3.
A54: Signed: | G54: Date: | H54: 2021-01-22

Sheet Energy Form 1
A1: =+'Cover Page'!C39 -> 2021 | B1: Annual Reporting of Energy Usage/Export
A3: =+'Cover Page'!B31 -> Permit EPR/BT7116IW | F3: Operator: | G3: =+'Cover Page'!B37:I37 -> 0
A5: Facility: | B5: =+'Cover Page'!B33:I33 -> Lakeside Energy from Waste Limited | F5: Form: | G5: Energy 1
A7: Reporting Period from: | D7: =+'Perf. Form 1'!D6:E6 -> 1st January 2021 | F7: to: | G7: =+'Perf. Form 1'!G6:H6 -> 31st December 2021
A9: Energy Source | D9: Energy Usage | F9: Unit | G9: Specific Useage (KWh/tonne incinerated
A10: Electricity Produced | D10: =+'Operational Data'!G24 -> 215767 | F10: MWh | G10: =+'Operational Data'!H24 -> 565.3056733
A11: Electricity Imported | D11: =+'Operational Data'!G27 -> 7822 | F11: MWh | G11: =+'Operational Data'!H27 -> 20.49349982
A12: Electricity Exported | D12: =+'Operational Data'!G25 -> 193483 | F12: MWh | G12: =+'Operational Data'!H25 -> 506.9219927
A13: Gas Oil | D13: 219645 | F13: tonnes
A14: Steam/hot water exported | D14: =+'Operational Data'!G30 -> 0 | F14: GWh | G14: =+'Operational Data'!H30 -> -
A18: Operator’s comments :
A19: Gas oil on this sheet includes vehicles used on site. Operational data refers to burners in furnace only. The Lakeside facility is equipped with solar panels on the roof which generated 206517 Kw during 2021.
A29: Signed: | G29: Date: | H29: 2021-01-22

Sheet Improvements
A1: =+'Cover Page'!$B$29 -> Annual Performance Report 2021 | E1: =+'Cover Page'!$B$33 -> Lakeside Energy from Waste Limited
A3: Summary of Plant Improvements
A5: Summary of any efficiency improvements that have been completed within the year.
A6: LED light replacements have continued across the site. Software changes have been made to the grate control software to allow improved control over changing waste conditions. There are now different settings for wet waste and dry waste. Car charging points have been installed to encourage the purchase of electric vehicles. Generator set point has been increased to generate more electricity.
A16: Summary of any permit improvement conditions that have been completed within the year and the resulting environmental benefits.
A27: Summary of any changes to the plant or operating techniques which required a variation to the permit and a summary of the resulting environmental impact.
A28: Lakeside were allowed to incinerate hazardous tobacco under an LEP (Local Enforcement Position). The emissions showed no noticeable change from burning normal waste. Lakeside were also allowed to incinerate bagged clinical waste under an RPS Regulatory Position Statement, which again showed no change to the emissions from the facility. These additional waste streams were in place of existing waste, not in addition to existing waste, so the throughput of the plant was not affected. The permit has now been varied to allow these wastes on a full time basis. The clinical waste requires a seperate feed to be installed which will be completed in 2022.
A38: Summary of any other improvements made to the plant or planned to be made and a summary of the resulting environmental benefits.
A39: Lakeside are preparing for the lowering of emission limits for NOx, HCl, SO2, Particulates, group 3 metals, cadmium and thalium, mercury, Dioxins and ammonia. All limits are achievable with the existing set up.

Sheet Permit Compliance
A1: =+'Cover Page'!$B$29 -> Annual Performance Report 2021 | E1: =+'Cover Page'!$B$33 -> Lakeside Energy from Waste Limited
A3: Summary of Permit Compliance
A5: Compliance with permit limits for continuously monitored pollutants
A7: The plant met its emission limits as shown in the table below:
A8: Substance | C8: Percentage time compliant during operation | L8: Notes:
C9: Half-hourly limit | F9: Daily limit | L9: Report to 2 decimal places, i.e. xx.xx% Please provide a brief summary of each notification or non-compliance in the table (rather than just referring to notifications that were sent to the Regulator).
A10: Particulates | C10: >99.99% | F10: 1
A11: Oxides of nitrogen | C11: 1 | F11: >99.99%
A12: Sulphur dioxide | C12: 1 | F12: 1
A13: Carbon monoxide | C13: >99.99 % 95% of 10-min averages | F13: 1
A14: Total organic carbon | C14: 1 | F14: 1
A15: Hydrogen chloride | C15: 1 | F15: 100
A16: Hydrogen fluoride | C16: 1 | F16: 1
C17: xx.xx % | F17: xx.xx %
A19: Summary of any notifications or non-compliances under the permit
A20: Date | B20: Summary of notification or non-compliance [including Line/Reference] | E20: Reason | H20: Measures taken to prevent reoccurrence
A21: 2021-01-12 | B21: NOx daily average at 200.06 mg/m3 | E21: Last half hour average high. | H21: Ammonia dosing
A22: 2021-04-08 | B22: Bag failure causing spike at 85.40 mg/m3 | E22: Abnormal operation | H22: Bag capped.
A23: 2021-05-29 | B23: Deionised water pumped to surface water drain. | E23: Bellows split causing bund to flood. | H23: Bellows repaired.
A24: 2021-09-25 | B24: Bag failure causing spike at 34.92 mg/m3 | E24: Abnormal operation | H24: Bag capped.
A27: Summary of any complaints received and actions to taken to resolve them.
A28: Date | B28: Summary of complaint [including Line/Reference] | E28: Reason * | H28: Measures taken to prevent reoccurrence
E34: * including whether substantiated by the operator or the EA

Sheet Public Liasion
A1: =+'Cover Page'!$B$29 -> Annual Performance Report 2021 | E1: =+'Cover Page'!$B$33 -> Lakeside Energy from Waste Limited
A3: Details of Public & Stakeholder Liasion
A5: Summary of events held during the reporting year.
A6: Date | C6: Description
C7: No events held due to Covid 19.
A16: List of events planned for next year
A17: Date | C17: Description
C18: Covid 19 dependant. Nothing provisionally planned.
A29: If you wish to be involved in the public liasion programme, please contact _________________

Sheet Residue Quality
A1: =+'Cover Page'!$B$29 -> Annual Performance Report 2021 | E1: =+'Cover Page'!$B$33 -> Lakeside Energy from Waste Limited
A3: Residue Quality Monitoring Requirements
A5: Summary of monitoring undertaken and compliance
A6: Lakeside carry out twice monthly sampling of IBA in accordance with the ESA IBA scheme. All ash returned non-hazardous for the year.
A8: APC was sampled quarterly and returned results that were within specification.
A13: Commentary on any specific events
A14: Date & Event | C14: Description
A27: Residue Quality Monitoring Results
A28: Parameter (unit) | C28: Limit | D28: Normal Operation
D29: Bottom ash | F29: APC Residues
A30: Loss on Ignition (average %) | C30: <5%
A31: Total Organic Carbon (average %) | C31: <3% | D31: 0.61
A32: No. of Assessments Undertaken | C32: --- | D32: 24 | F32: 4
A33: No. of Hazardous Results | C33: --- | D33: 0
A35: Comments :
A36: 4 Compliance monitoring assessments on both APC and IBA carried out during the year along with 24 hazardous waste assessments for IBA. All IBA results returned non-hazardous.

Sheet Water
A1: =+'Cover Page'!$B$29 -> Annual Performance Report 2021 | E1: =+'Cover Page'!$B$33 -> Lakeside Energy from Waste Limited
A3: Emissions to Water
A5: Summary of monitoring undertaken and compliance
A6: Any water generated on site is used in the process. This means there is no industrial effluent discharged to sewer.
A13: Commentary on any specific events
A14: Date & Event | C14: Description
A22: Emissions to Water / Sewer
A23: Parameter | D23: Monitoring Frequency | G23: Limit | H23: Target | I23: Max. | J23: Average

Sheet Air (periodic)
A1: =+'Cover Page'!$B$29 -> Annual Performance Report 2021 | E1: =+'Cover Page'!$B$33 -> Lakeside Energy from Waste Limited
A3: Emissions to Air (periodically monitored)
A5: Summary of monitoring undertaken, standards used and compliance | M5: Notes:
M6: Template may require adjustment for any bespoke monitoring requirements of permit.
A9: Results of emissions to air that are periodically monitored
A10: Substance | C10: Ref. Period | D10: Emission Limit Value | F10: Average | M10: User to add additional tables as necessary, depending on whether quarterly or bi-annual reporting is required for the compliance year
F11: A1 | G11: A2 | H11: A3 | I11: A4 | J11: A5
A12: Hydrogen fluoride | C12: 1 hr | D12: 2 mg/m3 | F12: 0.01 | G12: 0.01
A13: Cd and Th and their compounds | C13: 6-8hrs | D13: 0.05 mg/m3 | F13: 0.0007 | G13: 0.0008
A14: Hg and its compounds | C14: 6-8hrs | D14: 0.05 mg/m3 | F14: 0.0062 | G14: 0.0037
A15: Sb, As, Pb, Cr, Co, Cu, Mn, Ni, V and their compounds | C15: 6-8hrs | D15: 0.5 mg/m3 | F15: 0.042 | G15: 0.08
A16: Dioxins & Furans (I-TEQ) | C16: 6-8hrs | D16: 0.1 ng/m3 | F16: 0.0081 | G16: 0.0085
A17: PCBs (WHO-TEQ Humans / Mammals) | C17: 6-8hrs | D17: None set ng/m3 | F17: 0.000323 | G17: 0.0006
A18: PCBs (WHO-TEQ Fish) | C18: 6-8hrs | D18: None set ng/m3 | F18: 1.9e-05 | G18: 0
A19: PCBs (WHO-TEQ Birds) | C19: 6-8hrs | D19: None set ng/m3 | F19: 0.00717 | G19: 0.0021
A20: Dioxins & Furans (WHO-TEQ Humans / Mammals) | C20: 6-8hrs | D20: None set ng/m3 | F20: 0.0071 | G20: 0.0079
A21: Dioxins & Furans (WHO-TEQ Fish) | C21: 6-8hrs | D21: None set ng/m3 | F21: 0.0079 | G21: 0.0086
A22: Dioxins & Furans (WHO-TEQ Birds) | C22: 6-8hrs | D22: None set ng/m3 | F22: 0.013 | G22: 0.0167
A23: Anthanthrene | C23: 6-8hrs | D23: None set µg/m3
A24: Benzo(a)anthracene | C24: 6-8hrs | D24: None set µg/m3
A25: Benzo(a)pyrene | C25: 6-8hrs | D25: None set µg/m3
A26: Benzo(b)fluoranthene | C26: 6-8hrs | D26: None set µg/m3
A27: Benzo(b)naptho(2,1-d) thiophene | C27: 6-8hrs | D27: None set µg/m3
A28: Benzo(c)phenanthrene | C28: 6-8hrs | D28: None set µg/m3
A29: Benzo(ghi)perylene | C29: 6-8hrs | D29: None set µg/m3
A30: Benzo(k)fluoranthene | C30: 6-8hrs | D30: None set µg/m3
A31: Cholanthrene | C31: 6-8hrs | D31: None set µg/m3
A32: Chrysene | C32: 6-8hrs | D32: None set µg/m3
A33: Cyclopenta(cd)pyrene | C33: 6-8hrs | D33: None set µg/m3
A34: Dibenzo(ai)pyrene | C34: 6-8hrs | D34: None set µg/m3
A35: Dibenzo(ah)anthracene | C35: 6-8hrs | D35: None set µg/m3
A36: Fluoranthene | C36: 6-8hrs | D36: None set µg/m3
A37: Indeno(123-cd) pyrene | C37: 6-8hrs | D37: None set µg/m3
A38: Naphthalene | C38: 6-8hrs | D38: None set µg/m3
A39: Comments :
A40: The periodic monitoring is carried out twice per annum. The above set of results represent the higher of the two readings over the year so worse case example.

Sheet Air (CEMS)
A1: =+'Cover Page'!$B$29 -> Annual Performance Report 2021 | I1: =+'Cover Page'!$B$33 -> Lakeside Energy from Waste Limited
A3: Emissions to Air (continously monitored)
P4: Notes:
A5: Summary of monitoring undertaken, standards used and compliance | P5: Template may require adjustment for any bespoke monitoring requirements of permit
A6: A full QAL 2 was carried out on both lines and the standby analyser. New factors were entered for all parameters. | P6: Report to 2 decimal places, i.e. xx.xx%
A11: Results of emissions to air that are continuously monitored (maximum and average values for each line)
A12: Substance | B12: Reference Period | C12: Emission Limit Value | D12: A1 | F12: A2 | H12: A3 | J12: A4 | L12: A5
D13: Max. | E13: Avg. | F13: Max. | G13: Avg. | H13: Max. | I13: Avg. | J13: Max. | K13: Avg. | L13: Max. | M13: Avg.
A14: Oxides of nitrogen | B14: Daily mean | C14: 200 mg/m3 | D14: 200 | E14: 186.5 | F14: 199 | G14: 186.7
B15: ½ hourly mean | C15: 400 mg/m3 | D15: 314 | E15: 186.5 | F15: 257 | G15: 186.7
A16: Particulates | B16: Daily mean | C16: 10 mg/m3 | D16: 8 | E16: 1.333 | F16: 1 | G16: 0.42
B17: ½ hourly mean | C17: 30 mg/m3 | D17: 50 | E17: 1.333 | F17: 18 | G17: 0.42
A18: Total Organic Carbon | B18: Daily mean | C18: 10 mg/m3 | D18: 1 | E18: 0 | F18: 1 | G18: 0.42
B19: ½ hourly mean | C19: 20 mg/m3 | D19: 11 | E19: 0 | F19: 18 | G19: 0.42
A20: Hydrogen chloride | B20: Daily mean | C20: 10 mg/m3 | D20: 10 | E20: 5.42 | F20: 10 | G20: 4.33
B21: ½ hourly mean | C21: 60 mg/m3 | D21: 55 | E21: 5.42 | F21: 45 | G21: 4.33
A22: Sulphur dioxide | B22: Daily mean | C22: 50 mg/m3 | D22: 10 | E22: 6 | F22: 12 | G22: 7.6
B23: ½ hourly mean | C23: 200 mg/m3 | D23: 120 | E23: 6 | F23: 27 | G23: 7.6
A24: Carbon monoxide | B24: Daily mean | C24: 50 mg/m3 | D24: 19 | E24: 3 | F24: 15 | G24: 3.8
B25: ½ hourly mean * | C25: 100 mg/m3 * | D25: 986 | E25: 3 | F25: 677 | G25: 3.8
B26: 95%ile 10-min avg * | C26: 150 mg/m3 *
A27: Ammonia | B27: Daily mean | C27: No limit set | D27: 1 | E27: 0 | F27: 0 | G27: 0
A29: Comments :

Sheet HCl
A1: =+'Cover Page'!$B$29 -> Annual Performance Report 2021 | E1: =+'Cover Page'!$B$33 -> Lakeside Energy from Waste Limited
A3: Monitoring of Hydrogen Chloride emissions | D3: Whole Installation | G3: See Notes in Cell Q3 | J3: =+A3 -> Monitoring of Hydrogen Chloride emissions | N3: Per Combustion Line | Q3: Notes:
Q4: User to add logic to complete Whole installation, Table A5:G18. From the data in Per Combustion Line, Table J6:O79, subject to No. of lines installed
A5: mg/Nm3 | B5: 1/2 Hourly Reference Periods | E5: Daily Reference Periods
A6: 2021 | B6: 1/2 hourly HCl ELV | C6: Monthly 1/2 hourly mean | D6: Highest 1/2 hourly maximum | E6: Daily HCl ELV | F6: Monthly daily mean | G6: Highest daily maximum | J6: =+A6 -> 2021 | K6: mg/Nm3 | L6: Monthly 1/2 hourly mean | M6: Monthly 1/2 hourly maximum | N6: Monthly daily mean | O6: Monthly daily maximum
A7: Jan | B7: 60 | C7: =(L7+L22)/2 -> 4.44 | D7: =(M7+M22)/2 -> 38.075 | E7: 10 | F7: =(N7+N22)/2 -> 4.15 | G7: =(O7+O22)/2 -> 5.54 | J7: A1 | K7: Jan | L7: 4.74 | M7: 19.15 | N7: 4.75 | O7: 5.78
A8: Feb | B8: 60 | C8: =(L8+L23)/2 -> 6.67 | D8: 14.61 | E8: 10 | F8: =(N8+N23)/2 -> 6.67 | G8: 8.715 | K8: Feb | L8: 6.29 | M8: 9.29 | N8: 6.29 | O8: 8.37
A9: Mar | B9: 60 | C9: =(L9+L24)/2 -> 7.495 | D9: 18.625 | E9: 10 | F9: =(N9+N24)/2 -> 7.495 | G9: 8.875 | K9: Mar | L9: 7.18 | M9: 15.99 | N9: 7.17 | O9: 8.68 | Q9: Whole Installation table A5:G18:
A10: Apr | B10: 60 | C10: =(L10+L25)/2 -> 8.475 | D10: 21.085 | E10: 10 | F10: =(N10+N25)/2 -> 8.475 | G10: 9.49 | K10: Apr | L10: 8.62 | M10: 12.94 | N10: 8.62 | O10: 9.51 | Q10: Mean: for 1/2 hourly and daily periods calculate mean of values across all operational combustion lines for the month
A11: May | B11: 60 | C11: =(L11+L26)/2 -> 7.365 | D11: 15.115 | E11: 10 | F11: =(N11+N26)/2 -> 7.36 | G11: 8.985 | K11: May | L11: 8.08 | M11: 16.74 | N11: 8.09 | O11: 9.55
A12: Jun | B12: 60 | C12: =(L12+L27)/2 -> 5.98 | D12: 24.895 | E12: 10 | F12: =(N12+N27)/2 -> 5.965 | G12: 7.9 | K12: Jun | L12: 7.09 | M12: 34.07 | N12: 7.07 | O12: 9.07
A13: Jul | B13: 60 | C13: =(L13+L28)/2 -> 6.55 | D13: 17.895 | E13: 10 | F13: =(N13+N28)/2 -> 6.555 | G13: 8.67 | K13: Jul | L13: 7.8 | M13: 24.49 | N13: 7.79 | O13: 9.65 | Q13: Maximum: for 1/2 hourly and daily periods use the highest value across all operational combustion lines for the month
A14: Aug | B14: 60 | C14: =(L14+L29)/2 -> 6.625 | D14: 19.615 | E14: 10 | F14: =(N14+N29)/2 -> 6.46 | G14: 7.665 | K14: Aug | L14: 8.06 | M14: 22.02 | N14: 7.72 | O14: 8.9
A15: Sep | B15: 60 | C15: =(L15+L30)/2 -> 3.19 | D15: 10.125 | E15: 10 | F15: =(N15+N30)/2 -> 3.015 | G15: 3.695 | K15: Sep | L15: 3.56 | M15: 5.43 | N15: 3.56 | O15: 4.43
A16: Oct | B16: 60 | C16: =(L16+L31)/2 -> 4.18 | D16: 8.19 | E16: 10 | F16: =(N16+N31)/2 -> 4.18 | G16: 5.175 | K16: Oct | L16: 4.95 | M16: 10.76 | N16: 4.95 | O16: 6.42
A17: Nov | B17: 60 | C17: =(L17+L32)/2 -> 4.625 | D17: 26.35 | E17: 10 | F17: =(N17+N32)/2 -> 4.625 | G17: 6.22 | K17: Nov | L17: 5.58 | M17: 38.94 | N17: 5.58 | O17: 7.58
A18: Dec | B18: 60 | C18: =(L18+L33)/2 -> 4.785 | D18: 9.515 | E18: 10 | F18: =(N18+N33)/2 -> 4.8 | G18: 7.26 | K18: Dec | L18: 5.71 | M18: 12.73 | N18: 5.71 | O18: 8.48
K19: Annual | L19: =AVERAGE(L7:L18) -> 6.471666667 | M19: =MAX(M7:M18) -> 38.94 | N19: =AVERAGE(N7:N18) -> 6.441666667 | O19: =MAX(O7:O18) -> 9.65
J21: =+A6 -> 2021 | K21: mg/Nm3 | L21: Monthly 1/2 hourly mean | M21: Monthly 1/2 hourly maximum | N21: Monthly daily mean | O21: Monthly daily maximum
J22: A2 | K22: Jan | L22: 4.14 | M22: 57 | N22: 3.55 | O22: 5.3
K23: Feb | L23: 7.05 | M23: 19.93 | N23: 7.05 | O23: 9.06
K24: Mar | L24: 7.81 | M24: 21.26 | N24: 7.82 | O24: 9.07
K25: Apr | L25: 8.33 | M25: 29.23 | N25: 8.33 | O25: 9.47
K26: May | L26: 6.65 | M26: 13.49 | N26: 6.63 | O26: 8.42
K27: Jun | L27: 4.87 | M27: 15.72 | N27: 4.86 | O27: 6.73
K28: Jul | L28: 5.3 | M28: 11.3 | N28: 5.32 | O28: 7.69
K29: Aug | L29: 5.19 | M29: 17.21 | N29: 5.2 | O29: 6.43
K30: Sep | L30: 2.82 | M30: 14.82 | N30: 2.47 | O30: 2.96
K31: Oct | L31: 3.41 | M31: 5.62 | N31: 3.41 | O31: 3.93
K32: Nov | L32: 3.67 | M32: 13.76 | N32: 3.67 | O32: 4.86
K33: Dec | L33: 3.86 | M33: 6.3 | N33: 3.89 | O33: 6.04
K34: Annual | L34: =AVERAGE(L22:L33) -> 5.258333333 | M34: =MAX(M22:M33) -> 57 | N34: =AVERAGE(N22:N33) -> 5.183333333 | O34: =MAX(O22:O33) -> 9.47
J36: =+A6 -> 2021 | K36: mg/Nm3 | L36: Monthly 1/2 hourly mean | M36: Monthly 1/2 hourly maximum | N36: Monthly daily mean | O36: Monthly daily maximum
J37: A3 | K37: Jan
K38: Feb
K39: Mar
K40: Apr
K41: May
K42: Jun
K43: Jul
K44: Aug
K45: Sep
K46: Oct
K47: Nov
A48: Comments : | K48: Dec
K49: Annual | L49: =AVERAGE(L37:L48) ->  | M49: =MAX(M37:M48) -> 0 | N49: =AVERAGE(N37:N48) ->  | O49: =MAX(O37:O48) -> 0
J51: =+A6 -> 2021 | K51: mg/Nm3 | L51: Monthly 1/2 hourly mean | M51: Monthly 1/2 hourly maximum | N51: Monthly daily mean | O51: Monthly daily maximum
J52: A4 | K52: Jan
K53: Feb
K54: Mar
K55: Apr
K56: May
K57: Jun
K58: Jul
K59: Aug
K60: Sep
K61: Oct
K62: Nov
K63: Dec
K64: Annual | L64: =AVERAGE(L52:L63) ->  | M64: =MAX(M52:M63) -> 0 | N64: =AVERAGE(N52:N63) ->  | O64: =MAX(O52:O63) -> 0
J66: =+A6 -> 2021 | K66: mg/Nm3 | L66: Monthly 1/2 hourly mean | M66: Monthly 1/2 hourly maximum | N66: Monthly daily mean | O66: Monthly daily maximum
J67: A5 | K67: Jan
K68: Feb
K69: Mar
K70: Apr
K71: May
K72: Jun
K73: Jul
K74: Aug
K75: Sep
K76: Oct
K77: Nov
K78: Dec
K79: Annual | L79: =AVERAGE(L67:L78) ->  | M79: =MAX(M67:M78) -> 0 | N79: =AVERAGE(N67:N78) ->  | O79: =MAX(O67:O78) -> 0

Sheet SO2
A1: =+'Cover Page'!$B$29 -> Annual Performance Report 2021 | E1: =+'Cover Page'!$B$33 -> Lakeside Energy from Waste Limited
A3: Monitoring of Sulphur dioxide emissions | D3: Whole Installation | G3: See Notes in Cell Q3 | J3: =+A3 -> Monitoring of Sulphur dioxide emissions | N3: Per Combustion Line | Q3: Notes:
Q4: User to add logic to complete Whole installation, Table A5:G18. From the data in Per Combustion Line, Table J6:O79, subject to No. of lines installed
A5: mg/Nm3 | B5: 1/2 Hourly Reference Periods | E5: Daily Reference Periods
A6: 2021 | B6: 1/2 hourly SO2 ELV | C6: Monthly 1/2 hourly mean | D6: Highest 1/2 hourly maximum | E6: Daily SO2 ELV | F6: Monthly daily mean | G6: Highest daily maximum | J6: =+A6 -> 2021 | K6: mg/Nm3 | L6: Monthly 1/2 hourly mean | M6: Monthly 1/2 hourly maximum | N6: Monthly daily mean | O6: Monthly daily maximum
A7: Jan | B7: 200 | C7: =(L7+L22)/2 -> 8.17 | D7: =(M7+M22)/2 -> 23.965 | E7: 50 | F7: =(N7+N22)/2 -> 7.75 | G7: =(O7+O22)/2 -> 8.65 | J7: A1 | K7: Jan | L7: 6.96 | M7: 15.93 | N7: 6.96 | O7: 7.88
A8: Feb | B8: 200 | C8: =(L8+L23)/2 -> 8.115 | D8: 32.74 | E8: 50 | F8: =(N8+N23)/2 -> 8.115 | G8: 12.575 | K8: Feb | L8: 7.8 | M8: 22.52 | N8: 7.8 | O8: 14.28
A9: Mar | B9: 200 | C9: =(L9+L24)/2 -> 6.27 | D9: 30.98 | E9: 50 | F9: =(N9+N24)/2 -> 6.27 | G9: 8.56 | K9: Mar | L9: 5.67 | M9: 44.61 | N9: 5.67 | O9: 8.51 | Q9: Whole Installation table A5:G18:
A10: Apr | B10: 200 | C10: =(L10+L25)/2 -> 5.445 | D10: 19.9 | E10: 50 | F10: =(N10+N25)/2 -> 5.445 | G10: 8.04 | K10: Apr | L10: 5.03 | M10: 11.79 | N10: 5.03 | O10: 6.25 | Q10: Mean: for 1/2 hourly and daily periods calculate mean of values across all operational combustion lines for the month
A11: May | B11: 200 | C11: =(L11+L26)/2 -> 7.51 | D11: 17.98 | E11: 50 | F11: =(N11+N26)/2 -> 7.505 | G11: 8.38 | K11: May | L11: 5.34 | M11: 17.38 | N11: 5.32 | O11: 6.43
A12: Jun | B12: 200 | C12: =(L12+L27)/2 -> 7.68 | D12: 29.285 | E12: 50 | F12: =(N12+N27)/2 -> 7.515 | G12: 10.16 | K12: Jun | L12: 5.77 | M12: 36.5 | N12: 5.45 | O12: 9.04
A13: Jul | B13: 200 | C13: =(L13+L28)/2 -> 7.125 | D13: 24.535 | E13: 50 | F13: =(N13+N28)/2 -> 7.1 | G13: 8.46 | K13: Jul | L13: 5.51 | M13: 32 | N13: 5.47 | O13: 6.77 | Q13: Maximum: for 1/2 hourly and daily periods use the highest value across all operational combustion lines for the month
A14: Aug | B14: 200 | C14: =(L14+L29)/2 -> 7.54 | D14: 25.43 | E14: 50 | F14: =(N14+N29)/2 -> 7.4 | G14: 9.355 | K14: Aug | L14: 5.27 | M14: 19.17 | N14: 4.99 | O14: 5.75
A15: Sep | B15: 200 | C15: =(L15+L30)/2 -> 8.15 | D15: 110.905 | E15: 50 | F15: =(N15+N30)/2 -> 8.07 | G15: 15.475 | K15: Sep | L15: 4.82 | M15: 150.7 | N15: 4.83 | O15: 8.24
A16: Oct | B16: 200 | C16: =(L16+L31)/2 -> 7.55 | D16: 16.92 | E16: 50 | F16: =(N16+N31)/2 -> 7.55 | G16: 8.36 | K16: Oct | L16: 5.15 | M16: 18.87 | N16: 5.15 | O16: 5.89
A17: Nov | B17: 200 | C17: =(L17+L32)/2 -> 7.215 | D17: 23.995 | E17: 50 | F17: =(N17+N32)/2 -> 7.215 | G17: 10.205 | K17: Nov | L17: 5.68 | M17: 19.3 | N17: 5.68 | O17: 9.47
A18: Dec | B18: 200 | C18: =(L18+L33)/2 -> 7.115 | D18: 16.545 | E18: 50 | F18: =(N18+N33)/2 -> 7.105 | G18: 9.01 | K18: Dec | L18: 5.55 | M18: 11.79 | N18: 5.55 | O18: 7.4
K19: Annual | L19: =AVERAGE(L7:L18) -> 5.7125 | M19: =MAX(M7:M18) -> 150.7 | N19: =AVERAGE(N7:N18) -> 5.658333333 | O19: =MAX(O7:O18) -> 14.28
J21: =+A6 -> 2021 | K21: mg/Nm3 | L21: Monthly 1/2 hourly mean | M21: Monthly 1/2 hourly maximum | N21: Monthly daily mean | O21: Monthly daily maximum
J22: A2 | K22: Jan | L22: 9.38 | M22: 32 | N22: 8.54 | O22: 9.42
K23: Feb | L23: 8.43 | M23: 42.96 | N23: 8.43 | O23: 10.87
K24: Mar | L24: 6.87 | M24: 17.35 | N24: 6.87 | O24: 8.61
K25: Apr | L25: 5.86 | M25: 28.01 | N25: 5.86 | O25: 9.83
K26: May | L26: 9.68 | M26: 18.58 | N26: 9.69 | O26: 10.33
K27: Jun | L27: 9.59 | M27: 22.07 | N27: 9.58 | O27: 11.28
K28: Jul | L28: 8.74 | M28: 17.07 | N28: 8.73 | O28: 10.15
K29: Aug | L29: 9.81 | M29: 31.69 | N29: 9.81 | O29: 12.96
K30: Sep | L30: 11.48 | M30: 71.11 | N30: 11.31 | O30: 22.71
K31: Oct | L31: 9.95 | M31: 14.97 | N31: 9.95 | O31: 10.83
K32: Nov | L32: 8.75 | M32: 28.69 | N32: 8.75 | O32: 10.94
K33: Dec | L33: 8.68 | M33: 21.3 | N33: 8.66 | O33: 10.62
K34: Annual | L34: =AVERAGE(L22:L33) -> 8.935 | M34: =MAX(M22:M33) -> 71.11 | N34: =AVERAGE(N22:N33) -> 8.848333333 | O34: =MAX(O22:O33) -> 22.71
J36: =+A6 -> 2021 | K36: mg/Nm3 | L36: Monthly 1/2 hourly mean | M36: Monthly 1/2 hourly maximum | N36: Monthly daily mean | O36: Monthly daily maximum
J37: A3 | K37: Jan
K38: Feb
K39: Mar
K40: Apr
K41: May
K42: Jun
K43: Jul
K44: Aug
K45: Sep
K46: Oct
K47: Nov
A48: Comments : | K48: Dec
K49: Annual | L49: =AVERAGE(L37:L48) ->  | M49: =MAX(M37:M48) -> 0 | N49: =AVERAGE(N37:N48) ->  | O49: =MAX(O37:O48) -> 0
J51: =+A6 -> 2021 | K51: mg/Nm3 | L51: Monthly 1/2 hourly mean | M51: Monthly 1/2 hourly maximum | N51: Monthly daily mean | O51: Monthly daily maximum
J52: A4 | K52: Jan
K53: Feb
K54: Mar
K55: Apr
K56: May
K57: Jun
K58: Jul
K59: Aug
K60: Sep
K61: Oct
K62: Nov
K63: Dec
K64: Annual | L64: =AVERAGE(L52:L63) ->  | M64: =MAX(M52:M63) -> 0 | N64: =AVERAGE(N52:N63) ->  | O64: =MAX(O52:O63) -> 0
J66: =+A6 -> 2021 | K66: mg/Nm3 | L66: Monthly 1/2 hourly mean | M66: Monthly 1/2 hourly maximum | N66: Monthly daily mean | O66: Monthly daily maximum
J67: A5 | K67: Jan
K68: Feb
K69: Mar
K70: Apr
K71: May
K72: Jun
K73: Jul
K74: Aug
K75: Sep
K76: Oct
K77: Nov
K78: Dec
K79: Annual | L79: =AVERAGE(L67:L78) ->  | M79: =MAX(M67:M78) -> 0 | N79: =AVERAGE(N67:N78) ->  | O79: =MAX(O67:O78) -> 0

Sheet NOx
A1: =+'Cover Page'!$B$29 -> Annual Performance Report 2021 | E1: =+'Cover Page'!$B$33 -> Lakeside Energy from Waste Limited
A3: Monitoring of Oxides of Nitrogen emissions | D3: Whole Installation | G3: See Notes in Cell Q3 | J3: =+A3 -> Monitoring of Oxides of Nitrogen emissions | N3: Per Combustion Line | Q3: Notes:
Q4: User to add logic to complete Whole installation, Table A5:G18. From the data in Per Combustion Line, Table J6:O79, subject to No. of lines installed
A5: mg/Nm3 | B5: 1/2 Hourly Reference Periods | E5: Daily Reference Periods
A6: 2021 | B6: 1/2 hourly NOx ELV | C6: Monthly 1/2 hourly mean | D6: Highest 1/2 hourly maximum | E6: Daily NOx ELV | F6: Monthly daily mean | G6: Highest daily maximum | J6: =+A6 -> 2021 | K6: mg/Nm3 | L6: Monthly 1/2 hourly mean | M6: Monthly 1/2 hourly maximum | N6: Monthly daily mean | O6: Monthly daily maximum
A7: Jan | B7: 400 | C7: =(L7+L22)/2 -> 194.485 | D7: =(M7+M22)/2 -> 253.42 | E7: 200 | F7: =(N7+N22)/2 -> 193.53 | G7: =(O7+O22)/2 -> 199.44 | J7: A1 | K7: Jan | L7: 193.69 | M7: 262.84 | N7: 193.68 | O7: 200.06
A8: Feb | B8: 400 | C8: =(L8+L23)/2 -> 190.98 | D8: 270.22 | E8: 200 | F8: =(N8+N23)/2 -> 190.975 | G8: 197.43 | K8: Feb | L8: 191.89 | M8: 282.28 | N8: 191.88 | O8: 197.89
A9: Mar | B9: 400 | C9: =(L9+L24)/2 -> 187.305 | D9: 247.665 | E9: 200 | F9: =(N9+N24)/2 -> 187.295 | G9: 196.27 | K9: Mar | L9: 192.01 | M9: 242.6 | N9: 192 | O9: 196.64 | Q9: Whole Installation table A5:G18:
A10: Apr | B10: 400 | C10: =(L10+L25)/2 -> 184.315 | D10: 246.055 | E10: 200 | F10: =(N10+N25)/2 -> 184.315 | G10: 192.45 | K10: Apr | L10: 192.87 | M10: 248.68 | N10: 192.88 | O10: 198.32 | Q10: Mean: for 1/2 hourly and daily periods calculate mean of values across all operational combustion lines for the month
A11: May | B11: 400 | C11: =(L11+L26)/2 -> 187.995 | D11: 266.155 | E11: 200 | F11: =(N11+N26)/2 -> 187.86 | G11: 195.625 | K11: May | L11: 191.16 | M11: 260.67 | N11: 191.13 | O11: 197.65
A12: Jun | B12: 400 | C12: =(L12+L27)/2 -> 187.325 | D12: 273.165 | E12: 200 | F12: =(N12+N27)/2 -> 187.345 | G12: 195.81 | K12: Jun | L12: 189.74 | M12: 295.91 | N12: 189.52 | O12: 196.44
A13: Jul | B13: 400 | C13: =(L13+L28)/2 -> 179.575 | D13: 272.555 | E13: 200 | F13: =(N13+N28)/2 -> 179.805 | G13: 193.45 | K13: Jul | L13: 178.34 | M13: 275.54 | N13: 178.88 | O13: 198.97 | Q13: Maximum: for 1/2 hourly and daily periods use the highest value across all operational combustion lines for the month
A14: Aug | B14: 400 | C14: =(L14+L29)/2 -> 177.935 | D14: 276.775 | E14: 200 | F14: =(N14+N29)/2 -> 179.765 | G14: 195.35 | K14: Aug | L14: 177.38 | M14: 262.78 | N14: 181.04 | O14: 193.42
A15: Sep | B15: 400 | C15: =(L15+L30)/2 -> 185.38 | D15: 313.585 | E15: 200 | F15: =(N15+N30)/2 -> 190.635 | G15: 197.145 | K15: Sep | L15: 191.97 | M15: 349.71 | N15: 192.02 | O15: 197.97
A16: Oct | B16: 400 | C16: =(L16+L31)/2 -> 189.215 | D16: 284.32 | E16: 200 | F16: =(N16+N31)/2 -> 189.215 | G16: 197.065 | K16: Oct | L16: 191.21 | M16: 307.33 | N16: 191.21 | O16: 197.12
A17: Nov | B17: 400 | C17: =(L17+L32)/2 -> 179.5 | D17: 269.72 | E17: 200 | F17: =(N17+N32)/2 -> 179.5 | G17: 196.07 | K17: Nov | L17: 190.65 | M17: 276.14 | N17: 190.65 | O17: 198.61
A18: Dec | B18: 400 | C18: =(L18+L33)/2 -> 176.225 | D18: 262.475 | E18: 200 | F18: =(N18+N33)/2 -> 176.25 | G18: 194.27 | K18: Dec | L18: 188.67 | M18: 265.85 | N18: 188.66 | O18: 198.93
K19: Annual | L19: =AVERAGE(L7:L18) -> 189.1316667 | M19: =MAX(M7:M18) -> 349.71 | N19: =AVERAGE(N7:N18) -> 189.4625 | O19: =MAX(O7:O18) -> 200.06
J21: =+A6 -> 2021 | K21: mg/Nm3 | L21: Monthly 1/2 hourly mean | M21: Monthly 1/2 hourly maximum | N21: Monthly daily mean | O21: Monthly daily maximum
J22: A2 | K22: Jan | L22: 195.28 | M22: 244 | N22: 193.38 | O22: 198.82
K23: Feb | L23: 190.07 | M23: 258.16 | N23: 190.07 | O23: 196.97
K24: Mar | L24: 182.6 | M24: 252.73 | N24: 182.59 | O24: 195.9
K25: Apr | L25: 175.76 | M25: 243.43 | N25: 175.75 | O25: 186.58
K26: May | L26: 184.83 | M26: 271.64 | N26: 184.59 | O26: 193.6
K27: Jun | L27: 184.91 | M27: 250.42 | N27: 185.17 | O27: 195.18
K28: Jul | L28: 180.81 | M28: 269.57 | N28: 180.73 | O28: 187.93
K29: Aug | L29: 178.49 | M29: 290.77 | N29: 178.49 | O29: 197.28
K30: Sep | L30: 178.79 | M30: 277.46 | N30: 189.25 | O30: 196.32
K31: Oct | L31: 187.22 | M31: 261.31 | N31: 187.22 | O31: 197.01
K32: Nov | L32: 168.35 | M32: 263.3 | N32: 168.35 | O32: 193.53
K33: Dec | L33: 163.78 | M33: 259.1 | N33: 163.84 | O33: 189.61
K34: Annual | L34: =AVERAGE(L22:L33) -> 180.9075 | M34: =MAX(M22:M33) -> 290.77 | N34: =AVERAGE(N22:N33) -> 181.6191667 | O34: =MAX(O22:O33) -> 198.82
J36: =+A6 -> 2021 | K36: mg/Nm3 | L36: Monthly 1/2 hourly mean | M36: Monthly 1/2 hourly maximum | N36: Monthly daily mean | O36: Monthly daily maximum
J37: A3 | K37: Jan
K38: Feb
K39: Mar
K40: Apr
K41: May
K42: Jun
K43: Jul
K44: Aug
K45: Sep
K46: Oct
K47: Nov
A48: Comments : | K48: Dec
K49: Annual | L49: =AVERAGE(L37:L48) ->  | M49: =MAX(M37:M48) -> 0 | N49: =AVERAGE(N37:N48) ->  | O49: =MAX(O37:O48) -> 0
J51: =+A6 -> 2021 | K51: mg/Nm3 | L51: Monthly 1/2 hourly mean | M51: Monthly 1/2 hourly maximum | N51: Monthly daily mean | O51: Monthly daily maximum
J52: A4 | K52: Jan
K53: Feb
K54: Mar
K55: Apr
K56: May
K57: Jun
K58: Jul
K59: Aug
K60: Sep
K61: Oct
K62: Nov
K63: Dec
K64: Annual | L64: =AVERAGE(L52:L63) ->  | M64: =MAX(M52:M63) -> 0 | N64: =AVERAGE(N52:N63) ->  | O64: =MAX(O52:O63) -> 0
J66: =+A6 -> 2021 | K66: mg/Nm3 | L66: Monthly 1/2 hourly mean | M66: Monthly 1/2 hourly maximum | N66: Monthly daily mean | O66: Monthly daily maximum
J67: A5 | K67: Jan
K68: Feb
K69: Mar
K70: Apr
K71: May
K72: Jun
K73: Jul
K74: Aug
K75: Sep
K76: Oct
K77: Nov
K78: Dec
K79: Annual | L79: =AVERAGE(L67:L78) ->  | M79: =MAX(M67:M78) -> 0 | N79: =AVERAGE(N67:N78) ->  | O79: =MAX(O67:O78) -> 0

Sheet TOC
A1: =+'Cover Page'!$B$29 -> Annual Performance Report 2021 | E1: =+'Cover Page'!$B$33 -> Lakeside Energy from Waste Limited
A3: Monitoring of Total organic carbon emissions | D3: Whole Installation | G3: See Notes in Cell Q3 | J3: =+A3 -> Monitoring of Total organic carbon emissions | N3: Per Combustion Line | Q3: Notes:
Q4: User to add logic to complete Whole installation, Table A5:G18. From the data in Per Combustion Line, Table J6:O79, subject to No. of lines installed
A5: mg/Nm3 | B5: 1/2 Hourly Reference Periods | E5: Daily Reference Periods
A6: 2021 | B6: 1/2 hourly TOC ELV | C6: Monthly 1/2 hourly mean | D6: Highest 1/2 hourly maximum | E6: Daily TOC ELV | F6: Monthly daily mean | G6: Highest daily maximum | J6: =+A6 -> 2021 | K6: mg/Nm3 | L6: Monthly 1/2 hourly mean | M6: Monthly 1/2 hourly maximum | N6: Monthly daily mean | O6: Monthly daily maximum
A7: Jan | B7: 20 | C7: =+(L7+L22)/2 -> 1.405 | D7: =+(M7+M22)/2 -> 6.465 | E7: 10 | F7: =(N7+N22)/2 -> 0.325 | G7: =(O7+O22)/2 -> 0.48 | J7: A1 | K7: Jan | L7: 0.21 | M7: 2.93 | N7: 0.21 | O7: 0.37
A8: Feb | B8: 20 | C8: =+(L8+L23)/2 -> 0.33 | D8: 4.555 | E8: 10 | F8: =(N8+N23)/2 -> 0.33 | G8: 0.465 | K8: Feb | L8: 0.22 | M8: 5.37 | N8: 0.22 | O8: 0.34
A9: Mar | B9: 20 | C9: =+(L9+L24)/2 -> 0.175 | D9: 2.78 | E9: 10 | F9: =(N9+N24)/2 -> 0.17 | G9: 0.435 | K9: Mar | L9: 0.02 | M9: 2 | N9: 0.01 | O9: 0.37 | Q9: Whole Installation table A5:G18:
A10: Apr | B10: 20 | C10: =+(L10+L25)/2 -> 0.235 | D10: 3.99 | E10: 10 | F10: =(N10+N25)/2 -> 0.235 | G10: 0.33 | K10: Apr | L10: 0.36 | M10: 3.58 | N10: 0.36 | O10: 0.42 | Q10: Mean: for 1/2 hourly and daily periods calculate mean of values across all operational combustion lines for the month
A11: May | B11: 20 | C11: =+(L11+L26)/2 -> 0.265 | D11: 4.875 | E11: 10 | F11: =(N11+N26)/2 -> 0.27 | G11: 0.395 | K11: May | L11: 0.32 | M11: 4.43 | N11: 0.33 | O11: 0.46
A12: Jun | B12: 20 | C12: =+(L12+L27)/2 -> 0.105 | D12: 14.355 | E12: 10 | F12: =(N12+N27)/2 -> 0.06 | G12: 0.295 | K12: Jun | L12: 0.21 | M12: 17 | N12: 0.12 | O12: 0.34
A13: Jul | B13: 20 | C13: =+(L13+L28)/2 -> 0 | D13: 2.915 | E13: 10 | F13: =(N13+N28)/2 -> 0.105 | G13: 0.29 | K13: Jul | L13: 0 | M13: 3.73 | N13: 0 | O13: 0.29 | Q13: Maximum: for 1/2 hourly and daily periods use the highest value across all operational combustion lines for the month
A14: Aug | B14: 20 | C14: =+(L14+L29)/2 -> 0.23 | D14: 4.96 | E14: 10 | F14: =(N14+N29)/2 -> 0.215 | G14: 0.35 | K14: Aug | L14: 0.23 | M14: 4.3 | N14: 0.2 | O14: 0.27
A15: Sep | B15: 20 | C15: =+(L15+L30)/2 -> 0.52 | D15: 7.41 | E15: 10 | F15: =(N15+N30)/2 -> 0.19 | G15: 0.435 | K15: Sep | L15: 0.19 | M15: 3.82 | N15: 0.18 | O15: 0.3
A16: Oct | B16: 20 | C16: =+(L16+L31)/2 -> 0.19 | D16: 3.57 | E16: 10 | F16: =(N16+N31)/2 -> 0.19 | G16: 0.29 | K16: Oct | L16: 0.18 | M16: 3.48 | N16: 0.18 | O16: 0.31
A17: Nov | B17: 20 | C17: =+(L17+L32)/2 -> 0.235 | D17: 2.76 | E17: 10 | F17: =(N17+N32)/2 -> 0.235 | G17: 0.39 | K17: Nov | L17: 0.26 | M17: 2.33 | N17: 0.26 | O17: 0.43
A18: Dec | B18: 20 | C18: =+(L18+L33)/2 -> 0.145 | D18: 6.175 | E18: 10 | F18: =(N18+N33)/2 -> 0.195 | G18: 0.33 | K18: Dec | L18: 0.27 | M18: 3.85 | N18: 0.37 | O18: 0.37
K19: Annual | L19: =AVERAGE(L7:L18) -> 0.2058333333 | M19: =MAX(M7:M18) -> 17 | N19: =AVERAGE(N7:N18) -> 0.2033333333 | O19: =MAX(O7:O18) -> 0.46
J21: =+A6 -> 2021 | K21: mg/Nm3 | L21: Monthly 1/2 hourly mean | M21: Monthly 1/2 hourly maximum | N21: Monthly daily mean | O21: Monthly daily maximum
J22: A2 | K22: Jan | L22: 2.6 | M22: 10 | N22: 0.44 | O22: 0.59
K23: Feb | L23: 0.44 | M23: 3.74 | N23: 0.44 | O23: 0.59
K24: Mar | L24: 0.33 | M24: 3.56 | N24: 0.33 | O24: 0.5
K25: Apr | L25: 0.11 | M25: 4.4 | N25: 0.11 | O25: 0.24
K26: May | L26: 0.21 | M26: 5.32 | N26: 0.21 | O26: 0.33
K27: Jun | L27: 0 | M27: 11.71 | N27: 0 | O27: 0.25
K28: Jul | L28: 0 | M28: 2.1 | N28: 0.21 | O28: 0.29
K29: Aug | L29: 0.23 | M29: 5.62 | N29: 0.23 | O29: 0.43
K30: Sep | L30: 0.85 | M30: 11 | N30: 0.2 | O30: 0.57
K31: Oct | L31: 0.2 | M31: 3.66 | N31: 0.2 | O31: 0.27
K32: Nov | L32: 0.21 | M32: 3.19 | N32: 0.21 | O32: 0.35
K33: Dec | L33: 0.02 | M33: 8.5 | N33: 0.02 | O33: 0.29
K34: Annual | L34: =AVERAGE(L22:L33) -> 0.4333333333 | M34: =MAX(M22:M33) -> 11.71 | N34: =AVERAGE(N22:N33) -> 0.2166666667 | O34: =MAX(O22:O33) -> 0.59
J36: =+A6 -> 2021 | K36: mg/Nm3 | L36: Monthly 1/2 hourly mean | M36: Monthly 1/2 hourly maximum | N36: Monthly daily mean | O36: Monthly daily maximum
J37: A3 | K37: Jan
K38: Feb
K39: Mar
K40: Apr
K41: May
K42: Jun
K43: Jul
K44: Aug
K45: Sep
K46: Oct
K47: Nov
A48: Comments : | K48: Dec
K49: Annual | L49: =AVERAGE(L37:L48) ->  | M49: =MAX(M37:M48) -> 0 | N49: =AVERAGE(N37:N48) ->  | O49: =MAX(O37:O48) -> 0
J51: =+A6 -> 2021 | K51: mg/Nm3 | L51: Monthly 1/2 hourly mean | M51: Monthly 1/2 hourly maximum | N51: Monthly daily mean | O51: Monthly daily maximum
J52: A4 | K52: Jan
K53: Feb
K54: Mar
K55: Apr
K56: May
K57: Jun
K58: Jul
K59: Aug
K60: Sep
K61: Oct
K62: Nov
K63: Dec
K64: Annual | L64: =AVERAGE(L52:L63) ->  | M64: =MAX(M52:M63) -> 0 | N64: =AVERAGE(N52:N63) ->  | O64: =MAX(O52:O63) -> 0
J66: =+A6 -> 2021 | K66: mg/Nm3 | L66: Monthly 1/2 hourly mean | M66: Monthly 1/2 hourly maximum | N66: Monthly daily mean | O66: Monthly daily maximum
J67: A5 | K67: Jan
K68: Feb
K69: Mar
K70: Apr
K71: May
K72: Jun
K73: Jul
K74: Aug
K75: Sep
K76: Oct
K77: Nov
K78: Dec
K79: Annual | L79: =AVERAGE(L67:L78) ->  | M79: =MAX(M67:M78) -> 0 | N79: =AVERAGE(N67:N78) ->  | O79: =MAX(O67:O78) -> 0

Sheet Particulates
A1: =+'Cover Page'!$B$29 -> Annual Performance Report 2021 | E1: =+'Cover Page'!$B$33 -> Lakeside Energy from Waste Limited
A3: Monitoring of Particulate matter emissions | D3: Whole Installation | G3: See Notes in Cell Q3 | J3: =+A3 -> Monitoring of Particulate matter emissions | N3: Per Combustion Line | Q3: Notes:
Q4: User to add logic to complete Whole installation, Table A5:G18. From the data in Per Combustion Line, Table J6:O79, subject to No. of lines installed
A5: mg/Nm3 | B5: 1/2 Hourly Reference Periods | E5: Daily Reference Periods
A6: 2021 | B6: 1/2 hourly PM ELV | C6: Monthly 1/2 hourly mean | D6: Highest 1/2 hourly maximum | E6: Daily PM ELV | F6: Monthly daily mean | G6: Highest daily maximum | J6: =+A6 -> 2021 | K6: mg/Nm3 | L6: Monthly 1/2 hourly mean | M6: Monthly 1/2 hourly maximum | N6: Monthly daily mean | O6: Monthly daily maximum
A7: Jan | B7: 30 | C7: =(L7+L22)/2 -> 1.67 | D7: =(M7+M22)/2 -> 12.28 | E7: 10 | F7: =(N7+N22)/2 -> 1.58 | G7: =(O7+O22)/2 -> 3.94 | J7: A1 | K7: Jan | L7: 0.97 | M7: 1.91 | N7: 0.97 | O7: 1.25
A8: Feb | B8: 30 | C8: =(L8+L23)/2 -> 0.795 | D8: 2.14 | E8: 10 | F8: =(N8+N23)/2 -> 0.795 | G8: 1.24 | K8: Feb | L8: 0.81 | M8: 1.71 | N8: 0.81 | O8: 1.19
A9: Mar | B9: 30 | C9: =(L9+L24)/2 -> 0.825 | D9: 2.265 | E9: 10 | F9: =(N9+N24)/2 -> 0.825 | G9: 1.205 | K9: Mar | L9: 0.98 | M9: 2.54 | N9: 0.98 | O9: 1.39 | Q9: Whole Installation table A5:G18:
A10: Apr | B10: 30 | C10: =(L10+L25)/2 -> 1.04 | D10: 51.645 | E10: 10 | F10: =(N10+N25)/2 -> 1.04 | G10: 4.03 | K10: Apr | L10: 0.82 | M10: 17.89 | N10: 0.82 | O10: 1.6 | Q10: Mean: for 1/2 hourly and daily periods calculate mean of values across all operational combustion lines for the month
A11: May | B11: 30 | C11: =(L11+L26)/2 -> 0.775 | D11: 1.61 | E11: 10 | F11: =(N11+N26)/2 -> 0.775 | G11: 0.975 | K11: May | L11: 0.64 | M11: 1.32 | N11: 0.64 | O11: 0.82
A12: Jun | B12: 30 | C12: =(L12+L27)/2 -> 0.88 | D12: 10.62 | E12: 10 | F12: =(N12+N27)/2 -> 0.895 | G12: 5.065 | K12: Jun | L12: 0.53 | M12: 2.51 | N12: 0.52 | O12: 0.9
A13: Jul | B13: 30 | C13: =(L13+L28)/2 -> 0.635 | D13: 2.14 | E13: 10 | F13: =(N13+N28)/2 -> 0.635 | G13: 0.885 | K13: Jul | L13: 0.52 | M13: 2.22 | N13: 0.52 | O13: 0.85 | Q13: Maximum: for 1/2 hourly and daily periods use the highest value across all operational combustion lines for the month
A14: Aug | B14: 30 | C14: =(L14+L29)/2 -> 0.635 | D14: 2.85 | E14: 10 | F14: =(N14+N29)/2 -> 0.635 | G14: 0.93 | K14: Aug | L14: 0.57 | M14: 3.23 | N14: 0.57 | O14: 0.87
A15: Sep | B15: 30 | C15: =(L15+L30)/2 -> 0.815 | D15: 11.365 | E15: 10 | F15: =(N15+N30)/2 -> 0.745 | G15: 2.285 | K15: Sep | L15: 1.07 | M15: 1 | N15: 1.07 | O15: 3.67
A16: Oct | B16: 30 | C16: =(L16+L31)/2 -> 1.285 | D16: 10.3 | E16: 10 | F16: =(N16+N31)/2 -> 1.285 | G16: 3.55 | K16: Oct | L16: 2.34 | M16: 11.48 | N16: 2.34 | O16: 5.31
A17: Nov | B17: 30 | C17: =(L17+L32)/2 -> 0.055 | D17: 1.11 | E17: 10 | F17: =(N17+N32)/2 -> 0.055 | G17: 0.07 | K17: Nov | L17: 0 | M17: 1.35 | N17: 0 | O17: 0
A18: Dec | B18: 30 | C18: =(L18+L33)/2 -> 0.335 | D18: 6.535 | E18: 10 | F18: =(N18+N33)/2 -> 0.335 | G18: 4.745 | K18: Dec | L18: 0.55 | M18: 12.73 | N18: 0.55 | O18: 9.34
K19: Annual | L19: =AVERAGE(L7:L18) -> 0.8166666667 | M19: =MAX(M7:M18) -> 17.89 | N19: =AVERAGE(N7:N18) -> 0.8158333333 | O19: =MAX(O7:O18) -> 9.34
J21: =+A6 -> 2021 | K21: mg/Nm3 | L21: Monthly 1/2 hourly mean | M21: Monthly 1/2 hourly maximum | N21: Monthly daily mean | O21: Monthly daily maximum
J22: A2 | K22: Jan | L22: 2.37 | M22: 22.65 | N22: 2.19 | O22: 6.63
K23: Feb | L23: 0.78 | M23: 2.57 | N23: 0.78 | O23: 1.29
K24: Mar | L24: 0.67 | M24: 1.99 | N24: 0.67 | O24: 1.02
K25: Apr | L25: 1.26 | M25: 85.4 | N25: 1.26 | O25: 6.46
K26: May | L26: 0.91 | M26: 1.9 | N26: 0.91 | O26: 1.13
K27: Jun | L27: 1.23 | M27: 18.73 | N27: 1.27 | O27: 9.23
K28: Jul | L28: 0.75 | M28: 2.06 | N28: 0.75 | O28: 0.92
K29: Aug | L29: 0.7 | M29: 2.47 | N29: 0.7 | O29: 0.99
K30: Sep | L30: 0.56 | M30: 21.73 | N30: 0.42 | O30: 0.9
K31: Oct | L31: 0.23 | M31: 9.12 | N31: 0.23 | O31: 1.79
K32: Nov | L32: 0.11 | M32: 0.87 | N32: 0.11 | O32: 0.14
K33: Dec | L33: 0.12 | M33: 0.34 | N33: 0.12 | O33: 0.15
K34: Annual | L34: =AVERAGE(L22:L33) -> 0.8075 | M34: =MAX(M22:M33) -> 85.4 | N34: =AVERAGE(N22:N33) -> 0.7841666667 | O34: =MAX(O22:O33) -> 9.23
J36: =+A6 -> 2021 | K36: mg/Nm3 | L36: Monthly 1/2 hourly mean | M36: Monthly 1/2 hourly maximum | N36: Monthly daily mean | O36: Monthly daily maximum
J37: A3 | K37: Jan
K38: Feb
K39: Mar
K40: Apr
K41: May
K42: Jun
K43: Jul
K44: Aug
K45: Sep
K46: Oct
K47: Nov
A48: Comments : | K48: Dec
K49: Annual | L49: =AVERAGE(L37:L48) ->  | M49: =MAX(M37:M48) -> 0 | N49: =AVERAGE(N37:N48) ->  | O49: =MAX(O37:O48) -> 0
J51: =+A6 -> 2021 | K51: mg/Nm3 | L51: Monthly 1/2 hourly mean | M51: Monthly 1/2 hourly maximum | N51: Monthly daily mean | O51: Monthly daily maximum
J52: A4 | K52: Jan
K53: Feb
K54: Mar
K55: Apr
K56: May
K57: Jun
K58: Jul
K59: Aug
K60: Sep
K61: Oct
K62: Nov
K63: Dec
K64: Annual | L64: =AVERAGE(L52:L63) ->  | M64: =MAX(M52:M63) -> 0 | N64: =AVERAGE(N52:N63) ->  | O64: =MAX(O52:O63) -> 0
J66: =+A6 -> 2021 | K66: mg/Nm3 | L66: Monthly 1/2 hourly mean | M66: Monthly 1/2 hourly maximum | N66: Monthly daily mean | O66: Monthly daily maximum
J67: A5 | K67: Jan
K68: Feb
K69: Mar
K70: Apr
K71: May
K72: Jun
K73: Jul
K74: Aug
K75: Sep
K76: Oct
K77: Nov
K78: Dec
K79: Annual | L79: =AVERAGE(L67:L78) ->  | M79: =MAX(M67:M78) -> 0 | N79: =AVERAGE(N67:N78) ->  | O79: =MAX(O67:O78) -> 0

Sheet CO 0.5hourly
A1: =+'Cover Page'!$B$29 -> Annual Performance Report 2021 | E1: =+'Cover Page'!$B$33 -> Lakeside Energy from Waste Limited
A3: Monitoring of Carbon Monoxide (half hourly) | D3: Whole Installation | G3: See Notes in Cell Q3 | J3: =+A3 -> Monitoring of Carbon Monoxide (half hourly) | N3: Per Combustion Line | Q3: Notes:
Q4: User to add logic to complete Whole installation, Table A5:G18. From the data in Per Combustion Line, Table J6:O79, subject to No. of lines installed
A5: mg/Nm3 | B5: 1/2 Hourly Reference Periods | E5: Daily Reference Periods
A6: =+'Cover Page'!C39 -> 2021 | B6: 1/2 hourly CO ELV | C6: Monthly 1/2 hourly mean | D6: Highest 1/2 hourly maximum | E6: Daily CO ELV | F6: Monthly daily mean | G6: Highest daily maximum | J6: =+A6 -> 2021 | K6: mg/Nm3 | L6: Monthly 1/2 hourly mean | M6: Monthly 1/2 hourly maximum | N6: Monthly daily mean | O6: Monthly daily maximum
A7: Jan | B7: 100 | E7: 50 | J7: A1 | K7: Jan
A8: Feb | B8: =+B7 -> 100 | E8: =+E7 -> 50 | K8: Feb
A9: Mar | B9: =+B8 -> 100 | E9: =+E8 -> 50 | K9: Mar | Q9: Whole Installation table A5:G18:
A10: Apr | B10: 100 | E10: 50 | K10: Apr | Q10: Mean: for 1/2 hourly and daily periods calculate mean of values across all operational combustion lines for the month
A11: May | B11: 100 | E11: 50 | K11: May
A12: Jun | B12: 100 | E12: 50 | K12: Jun
A13: Jul | B13: 100 | E13: 50 | K13: Jul | Q13: Maximum: for 1/2 hourly and daily periods use the highest value across all operational combustion lines for the month
A14: Aug | B14: 100 | E14: 50 | K14: Aug
A15: Sep | B15: 100 | E15: 50 | K15: Sep
A16: Oct | B16: 100 | E16: 50 | K16: Oct
A17: Nov | B17: 100 | E17: 50 | K17: Nov
A18: Dec | B18: 100 | E18: 50 | K18: Dec
K19: Annual | L19: =AVERAGE(L7:L18) ->  | M19: =MAX(M7:M18) -> 0 | N19: =AVERAGE(N7:N18) ->  | O19: =MAX(O7:O18) -> 0
J21: =+A6 -> 2021 | K21: mg/Nm3 | L21: Monthly 1/2 hourly mean | M21: Monthly 1/2 hourly maximum | N21: Monthly daily mean | O21: Monthly daily maximum
J22: A2 | K22: Jan
K23: Feb
K24: Mar
K25: Apr
K26: May
K27: Jun
K28: Jul
K29: Aug
K30: Sep
K31: Oct
K32: Nov
K33: Dec
K34: Annual | L34: =AVERAGE(L22:L33) ->  | M34: =MAX(M22:M33) -> 0 | N34: =AVERAGE(N22:N33) ->  | O34: =MAX(O22:O33) -> 0
J36: =+A6 -> 2021 | K36: mg/Nm3 | L36: Monthly 1/2 hourly mean | M36: Monthly 1/2 hourly maximum | N36: Monthly daily mean | O36: Monthly daily maximum
J37: A3 | K37: Jan
K38: Feb
K39: Mar
K40: Apr
K41: May
K42: Jun
K43: Jul
K44: Aug
K45: Sep
K46: Oct
K47: Nov
A48: Comments : | K48: Dec
K49: Annual | L49: =AVERAGE(L37:L48) ->  | M49: =MAX(M37:M48) -> 0 | N49: =AVERAGE(N37:N48) ->  | O49: =MAX(O37:O48) -> 0
J51: =+A6 -> 2021 | K51: mg/Nm3 | L51: Monthly 1/2 hourly mean | M51: Monthly 1/2 hourly maximum | N51: Monthly daily mean | O51: Monthly daily maximum
J52: A4 | K52: Jan
K53: Feb
K54: Mar
K55: Apr
K56: May
K57: Jun
K58: Jul
K59: Aug
K60: Sep
K61: Oct
K62: Nov
K63: Dec
K64: Annual | L64: =AVERAGE(L52:L63) ->  | M64: =MAX(M52:M63) -> 0 | N64: =AVERAGE(N52:N63) ->  | O64: =MAX(O52:O63) -> 0
J66: =+A6 -> 2021 | K66: mg/Nm3 | L66: Monthly 1/2 hourly mean | M66: Monthly 1/2 hourly maximum | N66: Monthly daily mean | O66: Monthly daily maximum
J67: A5 | K67: Jan
K68: Feb
K69: Mar
K70: Apr
K71: May
K72: Jun
K73: Jul
K74: Aug
K75: Sep
K76: Oct
K77: Nov
K78: Dec
K79: Annual | L79: =AVERAGE(L67:L78) ->  | M79: =MAX(M67:M78) -> 0 | N79: =AVERAGE(N67:N78) ->  | O79: =MAX(O67:O78) -> 0

Sheet CO 95% 10 min
A1: =+'Cover Page'!$B$29 -> Annual Performance Report 2021 | E1: =+'Cover Page'!$B$33 -> Lakeside Energy from Waste Limited
A3: Monitoring of Carbon Monoxide (10-minute avg) | E3: Whole Installation | H3: See Notes in Cell S3 | J3: =+A3 -> Monitoring of Carbon Monoxide (10-minute avg) | O3: Per Combustion Line | Q3: Notes: | S3: Notes:
S4: User to add logic to complete Whole installation, Table A5:H18. From the data in Per Combustion Line, Table K6:Q79, subject to No. of lines installed
A5: mg/Nm3 | B5: 10-minute Reference Periods | F5: Daily Reference Periods
A6: 2021 | B6: 95%ile 10-min avg CO ELV | C6: 95%ile 10-min avg maximum | D6: Monthly CO 10-min avg mean | E6: 10-min avg maximum | F6: Daily CO ELV | G6: Monthly daily mean | H6: Highest daily maximum | K6: =+A6 -> 2021 | L6: mg/Nm3 | M6: 95%ile 10-min avg maximum | N6: Monthly CO 10-min avg mean | O6: 10-min avg maximum | P6: Monthly daily mean | Q6: Monthly daily maximum
A7: Jan | B7: 150 | C7: =(M7+M22)/2 -> 10.625 | D7: =(N7+N22)/2 -> 2.445 | E7: =(O7+O22)/2 -> 269.36 | F7: 50 | G7: =(P7+P22)/2 -> 1.59 | H7: =(Q7+Q22)/2 -> 4.17 | K7: A1 | L7: Jan | M7: 8.78 | N7: 2.89 | O7: 161.72 | P7: 2.9 | Q7: 4.9
A8: Feb | B8: =+B7 -> 150 | C8: =(M8+M23)/2 -> 20.59 | D8: =(N8+N23)/2 -> 3.135 | E8: 154.325 | F8: =+F7 -> 50 | G8: =(P8+P23)/2 -> 3.135 | H8: 6.845 | L8: Feb | M8: 21.41 | N8: 3.73 | O8: 82.91 | P8: 3.73 | Q8: 7.98
A9: Mar | B9: =+B8 -> 150 | C9: 12.87 | D9: =(N9+N24)/2 -> 3.555 | E9: 110.24 | F9: =+F8 -> 50 | G9: =(P9+P24)/2 -> 3.32 | H9: 5.605 | L9: Mar | M9: 14.57 | N9: 3.65 | O9: 152.79 | P9: 3.19 | Q9: 6.04 | S9: Whole Installation table A5:H18:
A10: Apr | B10: 150 | C10: 14.625 | D10: =(N10+N25)/2 -> 2.965 | E10: 344.295 | F10: 50 | G10: =(P10+P25)/2 -> 2.515 | H10: 6.315 | L10: Apr | M10: 14.28 | N10: 3.19 | O10: 458.92 | P10: 2.29 | Q10: 6.5 | S10: Mean: for 10-min and daily periods use average of all operational combustion lines.
A11: May | B11: 150 | C11: 12.22 | D11: =(N11+N26)/2 -> 2.04 | E11: 383.67 | F11: 50 | G11: =(P11+P26)/2 -> 3.555 | H11: 5.935 | L11: May | M11: 12.13 | N11: 2.36 | O11: 195.6 | P11: 5.58 | Q11: 6.04
A12: Jun | B12: 150 | C12: 54.67 | D12: =(N12+N27)/2 -> 4.12 | E12: 641.015 | F12: 50 | G12: =(P12+P27)/2 -> 2.345 | H12: 16.035 | L12: Jun | M12: 93.56 | N12: 5.9 | O12: 1002.99 | P12: 2.35 | Q12: 26.03
A13: Jul | B13: 150 | C13: 15.72 | D13: =(N13+N28)/2 -> 3.145 | E13: 769.815 | F13: 50 | G13: =(P13+P28)/2 -> 2.89 | H13: 9.33 | L13: Jul | M13: 18.88 | N13: 2.35 | O13: 508.72 | P13: 1.81 | Q13: 7.32 | S13: Maximum: for 10-min and daily periods use the highest of all operational combustion lines in any month.
A14: Aug | B14: 150 | C14: 21.3 | D14: =(N14+N29)/2 -> 2.145 | E14: 337.46 | F14: 50 | G14: =(P14+P29)/2 -> 2.395 | H14: 7.185 | L14: Aug | M14: 18.79 | N14: 2.19 | O14: 206.99 | P14: 2.67 | Q14: 4.1
A15: Sep | B15: 150 | C15: 56.755 | D15: =(N15+N30)/2 -> 2.75 | E15: 429.46 | F15: 50 | G15: =(P15+P30)/2 -> 1.2 | H15: 16.635 | L15: Sep | M15: 50.87 | N15: 2.86 | O15: 687.94 | P15: 0.38 | Q15: 16.14
A16: Oct | B16: 150 | C16: 7.965 | D16: =(N16+N31)/2 -> 0.19 | E16: 257.435 | F16: 50 | G16: =(P16+P31)/2 -> 0.075 | H16: 2.125 | L16: Oct | M16: 4.81 | N16: 0.38 | O16: 263.1 | P16: 0.15 | Q16: 2.47
A17: Nov | B17: 150 | C17: 7.8 | D17: =(N17+N32)/2 -> 0.45 | E17: 168.375 | F17: 50 | G17: =(P17+P32)/2 -> 0.835 | H17: 3.365 | L17: Nov | M17: 5.63 | N17: 0.15 | O17: 127.81 | P17: 0.92 | Q17: 2.24
A18: Dec | B18: 150 | C18: 10.32 | D18: =(N18+N33)/2 -> 2.105 | E18: 579.025 | F18: 50 | G18: =(P18+P33)/2 -> 3.045 | H18: 6.38 | L18: Dec | M18: 3.98 | N18: 0.92 | O18: 417.07 | P18: 3 | Q18: 6.72
L19: Annual | M19: =AVERAGE(M7:M18) -> 22.3075 | N19: =AVERAGE(N7:N18) -> 2.5475 | O19: =MAX(O7:O18) -> 1002.99 | P19: =AVERAGE(P7:P18) -> 2.414166667 | Q19: =MAX(Q7:Q18) -> 26.03
K21: =+A6 -> 2021 | L21: mg/Nm3 | M21: 95%ile 10-min avg maximum | N21: Monthly CO 10-min avg mean | O21: 10-min avg maximum | P21: Monthly daily mean | Q21: Monthly daily maximum
K22: A2 | L22: Jan | M22: 12.47 | N22: 2 | O22: 377 | P22: 0.28 | Q22: 3.44
L23: Feb | M23: 19.77 | N23: 2.54 | O23: 225.74 | P23: 2.54 | Q23: 5.71
L24: Mar | M24: 11.17 | N24: 3.46 | O24: 67.69 | P24: 3.45 | Q24: 5.17
L25: Apr | M25: 14.97 | N25: 2.74 | O25: 229.67 | P25: 2.74 | Q25: 6.13
L26: May | M26: 12.31 | N26: 1.72 | O26: 571.74 | P26: 1.53 | Q26: 5.83
L27: Jun | M27: 15.78 | N27: 2.34 | O27: 279.04 | P27: 2.34 | Q27: 6.04
L28: Jul | M28: 12.56 | N28: 3.94 | O28: 1030.91 | P28: 3.97 | Q28: 11.34
L29: Aug | M29: 23.81 | N29: 2.1 | O29: 467.93 | P29: 2.12 | Q29: 10.27
L30: Sep | M30: 62.64 | N30: 2.64 | O30: 170.98 | P30: 2.02 | Q30: 17.13
L31: Oct | M31: 11.12 | N31: 0 | O31: 251.77 | P31: 0 | Q31: 1.78
L32: Nov | M32: 9.97 | N32: 0.75 | O32: 208.94 | P32: 0.75 | Q32: 4.49
L33: Dec | M33: 16.66 | N33: 3.29 | O33: 740.98 | P33: 3.09 | Q33: 6.04
L34: Annual | M34: =AVERAGE(M22:M33) -> 18.6025 | N34: =AVERAGE(N22:N33) -> 2.293333333 | O34: =MAX(O22:O33) -> 1030.91 | P34: =AVERAGE(P22:P33) -> 2.069166667 | Q34: =MAX(Q22:Q33) -> 17.13
K36: =+A6 -> 2021 | L36: mg/Nm3 | M36: 95%ile 10-min avg maximum | N36: Monthly CO 10-min avg mean | O36: 10-min avg maximum | P36: Monthly daily mean | Q36: Monthly daily maximum
K37: A3 | L37: Jan
L38: Feb
L39: Mar
L40: Apr
L41: May
L42: Jun
L43: Jul
L44: Aug
L45: Sep
L46: Oct
L47: Nov
A48: Comments : | L48: Dec
A49: Environment Agency explanatory note: The 10-minute average ELV is based on the “95th percentile”. In this case this means that 95% of the 10 minute averages in the relevant 24-hour period (i.e. 137) must be below 150 mg/Nm3, and 5% (i.e. 7) are allowed to be any value above 150 mg/Nm3. Whilst we expect operators to minimise CO emissions at all times, it is perfectly acceptable for the value of the maximum 10-minute average to be above 150 mg/Nm3, provided the 95th percentile ELV has been met for that period. | L49: Annual | M49: =AVERAGE(M37:M48) ->  | O49: =MAX(O37:O48) -> 0 | P49: =AVERAGE(P37:P48) ->  | Q49: =MAX(Q37:Q48) -> 0
K51: =+A6 -> 2021 | L51: mg/Nm3 | M51: 95%ile 10-min avg maximum | N51: Monthly CO 10-min avg mean | O51: 10-min avg maximum | P51: Monthly daily mean | Q51: Monthly daily maximum
K52: A4 | L52: Jan
L53: Feb
L54: Mar
L55: Apr
L56: May
L57: Jun
L58: Jul
L59: Aug
L60: Sep
L61: Oct
L62: Nov
L63: Dec
L64: Annual | M64: =AVERAGE(M52:M63) ->  | O64: =MAX(O52:O63) -> 0 | P64: =AVERAGE(P52:P63) ->  | Q64: =MAX(Q52:Q63) -> 0
K66: =+A6 -> 2021 | L66: mg/Nm3 | M66: 95%ile 10-min avg maximum | N66: Monthly CO 10-min avg mean | O66: 10-min avg maximum | P66: Monthly daily mean | Q66: Monthly daily maximum
K67: A5 | L67: Jan
L68: Feb
L69: Mar
L70: Apr
L71: May
L72: Jun
L73: Jul
L74: Aug
L75: Sep
L76: Oct
L77: Nov
L78: Dec
L79: Annual | M79: =AVERAGE(M67:M78) ->  | O79: =MAX(O67:O78) -> 0 | P79: =AVERAGE(P67:P78) ->  | Q79: =MAX(Q67:Q78) -> 0

Sheet NH3
A1: =+'Cover Page'!$B$29 -> Annual Performance Report 2021 | E1: =+'Cover Page'!$B$33 -> Lakeside Energy from Waste Limited
A3: Monitoring of Ammnonia emissions | D3: Whole Installation | G3: See Notes in Cell Q3 | J3: =+A3 -> Monitoring of Ammnonia emissions | N3: Per Combustion Line | Q3: Notes:
Q4: User to add logic to complete Whole installation, Table A5:G18. From the data in Per Combustion Line, Table J6:O79, subject to No. of lines installed
A5: mg/Nm3 | B5: 1/2 Hourly Reference Periods | E5: Daily Reference Periods
A6: 2021 | B6: 1/2 hourly NH3 ELV | C6: Monthly 1/2 hourly mean | D6: Highest 1/2 hourly maximum | E6: Daily NH3 ELV | F6: Monthly daily mean | G6: Highest daily maximum | J6: =+A6 -> 2021 | K6: mg/Nm3 | L6: Monthly 1/2 hourly mean | M6: Monthly 1/2 hourly maximum | N6: Monthly daily mean | O6: Monthly daily maximum
A7: Jan | B7: 0 | C7: =(L7+L22)/2 -> 0.19 | D7: =(M7+M22)/2 -> 30.99 | E7: 10 | F7: =(N7+N22)/2 -> 0.08 | G7: =(O7+O22)/2 -> 0.275 | J7: A1 | K7: Jan | L7: 0.09 | M7: 1.92 | N7: 0.09 | O7: 0.33
A8: Feb | B8: =+B7 -> 0 | C8: =(L8+L23)/2 -> 0.05 | D8: 3.425 | E8: =+E7 -> 10 | F8: =(N8+N23)/2 -> 0.05 | G8: 0.485 | K8: Feb | L8: 0 | M8: 1.01 | N8: 0 | O8: 0.09
A9: Mar | B9: =+B8 -> 0 | C9: =(L9+L24)/2 -> 0.02 | D9: 2.9 | E9: =+E8 -> 10 | F9: =(N9+N24)/2 -> 0.02 | G9: 0.85 | K9: Mar | L9: 0 | M9: 5.54 | N9: 0 | O9: 1.62 | Q9: Whole Installation table A5:G18:
A10: Apr | B10: 0 | C10: =(L10+L25)/2 -> 0.03 | D10: 0.28 | E10: 10 | F10: =(N10+N25)/2 -> 0.03 | G10: 0.055 | K10: Apr | L10: 0 | M10: 0.16 | N10: 0 | O10: 0 | Q10: Mean: for 1/2 hourly and daily periods calculate mean of values across all operational combustion lines for the month
A11: May | B11: 0 | C11: =(L11+L26)/2 -> 0.03 | D11: 3.06 | E11: 10 | F11: =(N11+N26)/2 -> 0.03 | G11: 0.225 | K11: May | L11: 0 | M11: 4.27 | N11: 0 | O11: 0.21
A12: Jun | B12: 0 | C12: =(L12+L27)/2 -> 0.31 | D12: 48.725 | E12: 10 | F12: =(N12+N27)/2 -> 0.125 | G12: 2.135 | K12: Jun | L12: 0.4 | M12: 87.71 | N12: 0.03 | O12: 0.71
A13: Jul | B13: 0 | C13: =(L13+L28)/2 -> 0.05 | D13: 8.92 | E13: 10 | F13: =(N13+N28)/2 -> 0.035 | G13: 0.29 | K13: Jul | L13: 0.01 | M13: 6.25 | N13: 0 | O13: 0.41 | Q13: Maximum: for 1/2 hourly and daily periods use the highest value across all operational combustion lines for the month
A14: Aug | B14: 0 | C14: =(L14+L29)/2 -> 0.12 | D14: 4.085 | E14: 10 | F14: =(N14+N29)/2 -> 0.125 | G14: 0.72 | K14: Aug | L14: 0 | M14: 0.24 | N14: 0 | O14: 0
A15: Sep | B15: 0 | C15: =(L15+L30)/2 -> 0.62 | D15: 41.545 | E15: 10 | F15: =(N15+N30)/2 -> 0.57 | G15: 3.355 | K15: Sep | L15: 0.11 | M15: 22.1 | N15: 0.11 | O15: 1.03
A16: Oct | B16: 0 | C16: =(L16+L31)/2 -> 0.06 | D16: 6.89 | E16: 10 | F16: =(N16+N31)/2 -> 0.06 | G16: 0.92 | K16: Oct | L16: 0 | M16: 6.55 | N16: 0 | O16: 0.81
A17: Nov | B17: 0 | C17: =(L17+L32)/2 -> 0.04 | D17: 2.785 | E17: 10 | F17: =(N17+N32)/2 -> 0.04 | G17: 0.51 | K17: Nov | L17: 0.01 | M17: 4.23 | N17: 0.01 | O17: 0.8
A18: Dec | B18: 0 | C18: =(L18+L33)/2 -> 0.1 | D18: 2.485 | E18: 10 | F18: =(N18+N33)/2 -> 0.095 | G18: 0.215 | K18: Dec | L18: 0.08 | M18: 0.9 | N18: 0.08 | O18: 0.19
K19: Annual | L19: =AVERAGE(L7:L18) -> 0.05833333333 | M19: =MAX(M7:M18) -> 87.71 | N19: =AVERAGE(N7:N18) -> 0.02666666667 | O19: =MAX(O7:O18) -> 1.62
J21: =+A6 -> 2021 | K21: mg/Nm3 | L21: Monthly 1/2 hourly mean | M21: Monthly 1/2 hourly maximum | N21: Monthly daily mean | O21: Monthly daily maximum
J22: A2 | K22: Jan | L22: 0.29 | M22: 60.06 | N22: 0.07 | O22: 0.22
K23: Feb | L23: 0.1 | M23: 5.84 | N23: 0.1 | O23: 0.88
K24: Mar | L24: 0.04 | M24: 0.26 | N24: 0.04 | O24: 0.08
K25: Apr | L25: 0.06 | M25: 0.4 | N25: 0.06 | O25: 0.11
K26: May | L26: 0.06 | M26: 1.85 | N26: 0.06 | O26: 0.24
K27: Jun | L27: 0.22 | M27: 9.74 | N27: 0.22 | O27: 3.56
K28: Jul | L28: 0.09 | M28: 11.59 | N28: 0.07 | O28: 0.17
K29: Aug | L29: 0.24 | M29: 7.93 | N29: 0.25 | O29: 1.44
K30: Sep | L30: 1.13 | M30: 60.99 | N30: 1.03 | O30: 5.68
K31: Oct | L31: 0.12 | M31: 7.23 | N31: 0.12 | O31: 1.03
K32: Nov | L32: 0.07 | M32: 1.34 | N32: 0.07 | O32: 0.22
K33: Dec | L33: 0.12 | M33: 4.07 | N33: 0.11 | O33: 0.24
K34: Annual | L34: =AVERAGE(L22:L33) -> 0.2116666667 | M34: =MAX(M22:M33) -> 60.99 | N34: =AVERAGE(N22:N33) -> 0.1833333333 | O34: =MAX(O22:O33) -> 5.68
J36: =+A6 -> 2021 | K36: mg/Nm3 | L36: Monthly 1/2 hourly mean | M36: Monthly 1/2 hourly maximum | N36: Monthly daily mean | O36: Monthly daily maximum
J37: A3 | K37: Jan
K38: Feb
K39: Mar
K40: Apr
K41: May
K42: Jun
K43: Jul
K44: Aug
K45: Sep
K46: Oct
K47: Nov
A48: Comments : | K48: Dec
A49: An indicated ELV value of zero in the table above means that no ammonia limit is set in the permit. | K49: Annual | L49: =AVERAGE(L37:L48) ->  | M49: =MAX(M37:M48) -> 0 | N49: =AVERAGE(N37:N48) ->  | O49: =MAX(O37:O48) -> 0
J51: =+A6 -> 2021 | K51: mg/Nm3 | L51: Monthly 1/2 hourly mean | M51: Monthly 1/2 hourly maximum | N51: Monthly daily mean | O51: Monthly daily maximum
J52: A4 | K52: Jan
K53: Feb
K54: Mar
K55: Apr
K56: May
K57: Jun
K58: Jul
K59: Aug
K60: Sep
K61: Oct
K62: Nov
K63: Dec
K64: Annual | L64: =AVERAGE(L52:L63) ->  | M64: =MAX(M52:M63) -> 0 | N64: =AVERAGE(N52:N63) ->  | O64: =MAX(O52:O63) -> 0
J66: =+A6 -> 2021 | K66: mg/Nm3 | L66: Monthly 1/2 hourly mean | M66: Monthly 1/2 hourly maximum | N66: Monthly daily mean | O66: Monthly daily maximum
J67: A5 | K67: Jan
K68: Feb
K69: Mar
K70: Apr
K71: May
K72: Jun
K73: Jul
K74: Aug
K75: Sep
K76: Oct
K77: Nov
K78: Dec
K79: Annual | L79: =AVERAGE(L67:L78) ->  | M79: =MAX(M67:M78) -> 0 | N79: =AVERAGE(N67:N78) ->  | O79: =MAX(O67:O78) -> 0
